Cogmind - Beta 16.1 @@@ ROGUE MODE // 2026.02.11 @ 04:10:23 Player: AngelSpirit Result: Destroyed by Enhanced Sentry with Long-range Gatling Laser Performance ------------- Evolutions (9) 4500 Regions Visited (31) 6200 Robots Destroyed (370) 1850 Value Destroyed (16041) 16041 Prototype IDs (385) 7700 Alien Tech Used (12) 2400 Bonus (43705) 43705 TOTAL SCORE: 82396 Bonus ------- Triggered Max Security 2000 High Alert Combat Kills 1816 Follower Combat Kills 1482 Hunted by Unchained 500 Network Hubs Disabled 600 Met Data Miner 300 Met Zhirov 300 Met R17 at Cetus 500 Found Hidden Lab 3000 Used Core Reset Matrix 3000 Hacked Protovariant 1000 Met R17 at Research 2000 Scanned by Researcher 500 Integrated Exoskeleton 5000 Destroyed MAIN.C Guards 500 Met MAIN.C 5000 Destroyed MAIN.C Shell 5000 Destroyed MAIN.C 10000 Met Architect 300 Destroyed A8 300 Destroyed A6 400 Destroyed A5 500 Friendly Fire -293 Cogmind --------- Core Integrity 0/1600 Matter 284/300 Energy 190/340 System Corruption 0% +Membrane Temperature Warm (108) Movement Walking (30) Location -1/Access_0 Parts ------- > --- POWER (1) -------- Zero-point Reactor > --- PROPULSION (3) --- Sigix Exoskeleton > --- UTILITY (4) ------ Experimental Core Analyzer Experimental Weapon Cycler Experimental Reaction Control System AEGIS Remote Shield > --- WEAPON (3) ------- Sigix Sheargun Sigix Sheargun Sigix Sheargun > --- INVENTORY (9) ---- Experimental Energy Well (600) Experimental Targeting Computer Improved Armor Integrity Analyzer Sigix Broadsword Peak State ------------ > --- POWER ------------ Zero-point Reactor > --- PROPULSION ------- Sigix Exoskeleton > --- UTILITY ---------- Experimental Core Analyzer Experimental Weapon Cycler Experimental Reaction Control System AEGIS Remote Shield > --- WEAPON ----------- Sigix Sheargun Sigix Sheargun Sigix Sheargun > --- INVENTORY -------- Experimental Energy Well Advanced Phase Shifter Experimental Propulsion Shielding Transdimensional Reconstructor Subatomic Replicator High-powered Disruptor Cannon Sigix Broadsword [Rating: 255] Favorites ----------- Power Micro Nuclear Core Engine Ion Engine Power Core Micro Nuclear Core Reactor Light Quantum Reactor Propulsion Cooled Gravmag System Leg Sigix Exoskeleton Wheel Compact Wheel Hover Unit Cooled Gravmag System Flight Unit Xenon Bombardment Thruster Utility Core Analyzer Device Improved Sensor Array Storage Medium Storage Unit Processor Core Analyzer Hackware Improved Hacking Suite Protection Centrium Medium Armor Plating Weapon Hypervelocity Railgun Energy Gun Sigix Sheargun Energy Cannon Multinova Projection Cannon Ballistic Gun Hypervelocity Railgun Ballistic Cannon Mini Assault Cannon Launcher Heavy Missile Launcher Special Weapon Guided Remote Datajack Slashing Weapon Sigix Broadsword Piercing Weapon Force Lance Build | -11 -10 -10 -10 -9 -8 -7 -7 -7 -7 -6 -6 -6 -6 -6 -6 -5 -5 -5 -5 -4 -4 -4 -4 -3 -3 -2 -2 -2 -1 -1 -1 ------- Run | Yrd Mat Min Exi Min Mat Fac Low Low Dat Pro Fac Ext Cet Arc Hub Fac Upp Upp Zhi Pro Fac Arm Lab Res Qua Res Tes Sec Acc Com Ac0 Slots Evolved 18 | . . . . . 4 2 . . . . 2 . . . . 2 . . . . 2 . . 2 . 2 . . 2 . . Power 1 | . . . . . . . . . . . . . . . . . . . . . 1 . . . . . . . . . . Propulsion 5 | . . . . . 1 . . . . . 2 . . . . 1 . . . . . . . 1 . . . . . . . Utility 9 | . . . . . 2 2 . . . . . . . . . 1 . . . . 1 . . 1 . 1 . . 1 . . Weapon 3 | . . . . . 1 . . . . . . . . . . . . . . . . . . . . 1 . . 1 . . Parts Attached 353 | 7 11 1 2 2 26 50 2 1 . 5 18 11 12 7 3 23 3 3 5 . 2 18 6 68 14 9 7 6 11 19 1 Power 34 | 1 . . . 1 3 3 . . . 1 1 3 2 1 1 1 1 . . . . 5 . 4 2 . . 2 . 2 . Engine 7 | 1 . . . . 2 2 . . . . 1 1 . . . . . . . . . . . . . . . . . . . Core 13 | . . . . 1 1 1 . . . 1 . 2 1 1 1 . 1 . . . . 1 . 2 . . . . . . . Reactor 14 | . . . . . . . . . . . . . 1 . . 1 . . . . . 4 . 2 2 . . 2 . 2 . Propulsion 54 | 2 3 . . 1 4 11 . . . . 4 3 1 2 1 10 . . 2 . . . . 4 5 . 1 . . . . Treads . | . . . . . . . . . . . . . . . . . . . . . . . . . . . . . . . . Leg . | . . . . . . . . . . . . . . . . . . . . . . . . . . . . . . . . Wheel 10 | 2 3 . . 1 4 . . . . . . . . . . . . . . . . . . . . . . . . . . Hover 42 | . . . . . . 9 . . . . 4 3 1 2 1 10 . . 2 . . . . 4 5 . 1 . . . . Flight 2 | . . . . . . 2 . . . . . . . . . . . . . . . . . . . . . . . . . Utility 182 | 2 5 . . . 8 23 1 1 . 3 7 2 5 4 1 9 1 1 3 . 1 5 2 53 6 8 4 3 8 15 1 Device 105 | 1 2 . . . 3 11 1 . . 1 4 1 3 1 . 5 1 1 . . . 4 . 36 5 7 4 2 5 6 1 Storage 12 | 1 2 . . . 1 . . . . . 1 . . . . . . . 1 . . . . 4 . . . . . 2 . Processor 23 | . . . . . . 3 . . . . 2 . 1 . . 2 . . . . 1 . . 8 . 1 . . 2 3 . Hackware 16 | . . . . . . 5 . 1 . 1 . . . 1 1 1 . . 1 . . . 1 1 . . . . 1 2 . Protection 26 | . 1 . . . 4 4 . . . 1 . 1 1 2 . 1 . . 1 . . 1 1 4 1 . . 1 . 2 . Artifact . | . . . . . . . . . . . . . . . . . . . . . . . . . . . . . . . . Weapon 83 | 2 3 1 2 . 11 13 1 . . 1 6 3 4 . . 3 1 2 . . 1 8 4 7 1 1 2 1 3 2 . Energy Gun 32 | 1 1 1 2 . 3 9 . . . . 2 1 . . . 1 . . . . 1 1 2 1 1 . 2 . 3 . . Energy Cannon 8 | . 1 . . . 2 . . . . 1 . . . . . . . . . . . 1 . 1 . . . 1 . 1 . Ballistic Gun 25 | 1 . . . . 4 2 . . . . 4 1 4 . . 2 . 1 . . . 4 1 1 . . . . . . . Ballistic Cannon 4 | . . . . . . 1 . . . . . . . . . . 1 1 . . . 1 . . . . . . . . . Launcher 7 | . . . . . 1 . 1 . . . . 1 . . . . . . . . . . . 4 . . . . . . . Special Weapon 3 | . 1 . . . . . . . . . . . . . . . . . . . . . 1 . . . . . . 1 . Impact Weapon . | . . . . . . . . . . . . . . . . . . . . . . . . . . . . . . . . Slashing Weapon 3 | . . . . . 1 1 . . . . . . . . . . . . . . . . . . . 1 . . . . . Piercing Weapon 1 | . . . . . . . . . . . . . . . . . . . . . . 1 . . . . . . . . . Special Melee Weapon . | . . . . . . . . . . . . . . . . . . . . . . . . . . . . . . . . Unidentified Prototypes 58 | . . . . . 1 10 . . . 1 1 . 2 . 1 2 . . 4 . . 5 9 10 2 1 6 1 . 2 . Parts Lost 66 | . 2 1 . 1 7 18 . . . 1 . 6 4 2 5 2 . . . . . 1 . . 1 . 1 14 . . . Power 6 | . . . . . 1 1 . . . . . 1 1 . . . . . . . . . . . . . . 2 . . . Propulsion 24 | . . . . 1 2 7 . . . . . 3 1 . 3 1 . . . . . . . . . . 1 5 . . . Utility 22 | . . . . . 2 5 . . . 1 . 1 2 2 1 1 . . . . . 1 . . 1 . . 5 . . . Weapon 14 | . 2 1 . . 2 5 . . . . . 1 . . 1 . . . . . . . . . . . . 2 . . . Highest Loss Streak 14 | . 2 1 . 1 3 6 . . . 1 . 3 2 2 5 1 . . . . . 1 . . 1 . 1 14 . . . To Critical Strikes 2 | . . . . . . 1 . . . . . . . . . . . . . . . . . . . . . 1 . . . Average Backups 9 | . 5 10 15 18 18 7 5 5 5 4 7 9 9 9 9 9 9 10 9 10 9 9 6 10 13 14 14 10 4 6 6 Power . | . . . 1 2 1 . 1 1 1 . 1 1 1 2 2 1 1 1 1 1 . . . . 1 1 1 . . . . Propulsion 1 | . 3 5 5 4 2 2 1 1 1 1 . 1 . . . . 1 1 1 1 1 1 1 . . . . . . . . Utility 4 | . 1 3 7 9 9 4 2 2 2 1 3 4 7 6 6 5 6 6 5 5 5 3 3 3 5 5 6 4 . 2 5 Weapon 2 | . . 1 1 3 4 . 1 1 1 1 2 2 1 1 1 1 1 2 1 2 2 3 1 3 2 2 1 1 2 1 . Tool/Special . | . . . . . . . . . . . . . . . . . . . . . . . . . . . . . . . . Unused Backups 64 | . 7 . . . 6 17 . . . 1 3 1 3 . . 4 4 . . . . 4 . 4 . . 1 2 . 2 5 Power 11 | . . . . . 1 3 . . . . 1 1 . . . 2 . . . . . 1 . 1 . . 1 . . . . Propulsion 13 | . 7 . . . 1 3 . . . . . . . . . 2 . . . . . . . . . . . . . . . Utility 29 | . . . . . 1 11 . . . 1 2 . 3 . . . 2 . . . . 1 . 1 . . . 2 . . 5 Weapon 11 | . . . . . 3 . . . . . . . . . . . 2 . . . . 2 . 2 . . . . . 2 . Tool/Special . | . . . . . . . . . . . . . . . . . . . . . . . . . . . . . . . . Average Slot Usage (%) 88 | . 99 96 89 99 95 84 92 92 92 87 92 89 89 92 90 91 94 94 93 94 91 93 88 93 89 81 81 64 65 72 75 Engine 1 | . 14 14 14 1 1 3 . . . . . . . . . . . . . . . . . . . . . . . . . Core 2 | . . . . 12 7 2 7 7 7 7 6 5 5 6 6 1 . . . . 5 4 5 2 . . . . . . . Reactor 3 | . . . . . . . . . . . . . . . . 3 5 5 5 5 5 5 5 5 9 8 8 8 9 8 9 Leg 1 | . . . . . . . . . . . . . . . . . . . . . . . . . . . . 3 9 9 9 Wheel 5 | . 27 28 28 27 25 4 . . . . . . . . . . . . . . . . . . . . . . . . . Hover 16 | . . . . . . 14 23 23 23 23 26 23 25 26 24 29 29 29 29 29 26 26 26 29 26 21 20 12 . . . Device 11 | . 8 13 14 14 18 12 21 20 15 10 6 6 8 6 6 4 5 5 5 5 9 6 5 9 11 16 17 13 17 22 19 Storage 5 | . 14 14 14 14 9 1 . . . . 3 6 6 6 6 5 5 5 5 5 5 5 5 4 4 4 4 2 . . . Processor 9 | . . . . . . 5 7 7 7 7 12 13 14 13 13 12 11 11 11 11 12 15 15 14 14 13 13 9 8 9 9 Hackware 4 | . . . . . . 9 8 9 15 15 8 6 1 4 8 10 11 11 9 5 5 5 5 6 4 4 4 2 5 1 . Protection 4 | . 5 . . . 7 5 7 7 7 7 5 5 5 6 4 4 4 4 5 11 5 8 9 3 4 4 3 2 . . . Energy Gun 5 | . 6 9 18 28 16 5 . . . . 1 . . . . . . . . . 3 . . . . . . 2 8 12 27 Energy Cannon 1 | . 8 4 . . 3 . . . . . 3 . . . . . . . . . . . 4 . . 4 4 2 . . . Ballistic Gun 7 | . 12 11 . . 4 4 . . . . 10 18 20 20 18 15 13 10 11 10 6 12 . 9 11 . . . . . . Ballistic Cannon 1 | . . . . . . 3 6 7 7 7 2 . . . . . 2 5 5 5 5 1 . . . . . . . . . Slashing Weapon 2 | . . . . . . 6 7 7 7 7 . . . . . . . . . . . . . . . 3 4 4 8 7 . Peak Build Rating 255 | 7 8 9 16 18 31 55 53 53 53 56 78 79 93 93 94 107 99 101 105 105 119 136 138 167 177 206 208 213 239 255 250 Average Rating 109 | 5 7 8 11 17 28 42 52 52 53 52 73 71 86 91 88 93 97 99 102 104 114 125 131 150 161 201 203 185 233 245 245 On Entrance 95 | . 7 8 8 16 18 31 53 52 53 53 52 72 75 90 92 58 97 99 101 105 105 118 128 130 160 177 203 205 213 238 241 Avg Prop Armor Cover (%) 3 | . . . . . . . . . . . . . . . . 3 . . . . . . . . . . . . . . . Naked Turns . | . . . . . . . . . . . . . . . . . . . . . . . . . . . . . . . . Heaviest Build 87 | 15 51 51 52 52 70 69 23 23 22 24 45 47 44 51 50 54 57 60 61 61 67 67 67 75 86 87 87 87 42 59 59 Greatest Support 105 | 20 32 32 32 32 48 48 24 24 24 24 62 58 54 54 54 64 63 63 67 67 81 67 67 89 95 105 105 98 60 60 60 Greatest Overweight (x) 4 | . 2 1 1 1 2 4 . . . . 1 . . . 1 1 . . . . . . . . . . 1 . . . . Average Overweight (x) . | . 1 1 1 1 1 . . . . . . . . . . . . . . . . . . . . . . . . . . Largest Inventory Capacity 29 | 8 20 20 20 20 20 20 5 5 5 5 10 10 10 10 10 10 10 10 10 10 10 10 10 20 15 15 15 15 9 29 19 Average Capacity 11 | 7 19 20 20 20 20 9 5 5 5 5 8 10 10 10 10 10 10 10 10 10 10 10 10 12 15 15 15 11 9 9 9 Most Carried 20 | 1 10 12 19 19 20 20 5 5 5 5 10 10 10 10 10 10 10 10 10 10 10 10 10 15 15 15 15 15 6 19 18 Average Carried 9 | . 5 10 15 18 18 7 4 5 5 4 7 9 9 9 9 9 9 10 9 10 9 9 6 11 14 14 14 10 4 6 7 Final Capacity 20 | 8 20 20 20 20 20 5 5 5 5 5 10 10 10 10 10 10 10 10 10 10 10 10 10 15 15 15 15 9 9 19 9 Final Carried 19 | 1 9 12 19 19 15 5 5 5 5 5 10 10 10 10 9 10 10 10 10 10 10 10 10 15 15 15 15 5 4 19 5 Class Distribution -------------------- 15% | Scavenger-Skirmisher 14% | Alien-Sigix 12% | Mutant 10% | Hacker-Scout 8% | Scavenger-Mutant 7% | Skirmisher 6% | Scavenger-Scout 5% | Alien-Ninja 5% | Hacker-Mutant 3% | Tank Dominant Class ---------------- Mutant | -10/Materials Mutant | -10/Mines Mutant | -10/Exiles Scavenger-Mutant | -9/Mines Tank | -8/Materials Scavenger-Mutant | -7/Factory Scavenger-Mutant | -7/Lower Caves Scavenger-Mutant | -7/Lower Caves Hacker-Mutant | -7/Data Miner Hacker-Mutant | -6/Proximity Caves Skirmisher | -6/Factory Skirmisher | -6/Extension Scavenger-Skirmisher | -6/Cetus Scavenger-Skirmisher | -6/Archives Scavenger-Skirmisher | -6/Hub_04(d) Scavenger-Skirmisher | -5/Factory Scavenger-Skirmisher | -5/Upper Caves Scavenger-Skirmisher | -5/Upper Caves Scavenger-Skirmisher | -5/Zhirov Scavenger-Skirmisher | -4/Proximity Caves Scavenger-Scout | -4/Factory Scavenger-Scout | -4/Armory Scavenger-Scout | -4/Lab Hacker-Scout | -3/Research Hacker-Scout | -3/Quarantine Alien-Ninja | -2/Research Alien-Ninja | -2/Testing Alien-Sigix | -2/Section 7 Alien-Sigix | -1/Access Alien-Sigix | -1/Command Alien-Sigix | -1/Access_0 Resources | -11 -10 -10 -10 -9 -8 -7 -7 -7 -7 -6 -6 -6 -6 -6 -6 -5 -5 -5 -5 -4 -4 -4 -4 -3 -3 -2 -2 -2 -1 -1 -1 ----------- Run | Yrd Mat Min Exi Min Mat Fac Low Low Dat Pro Fac Ext Cet Arc Hub Fac Upp Upp Zhi Pro Fac Arm Lab Res Qua Res Tes Sec Acc Com Ac0 Matter Collected 12826 | 272 350 115 56 20 669 1169 158 10 . 163 823 882 410 428 160 928 439 192 . 101 18 1805 . 1355 1360 136 55 287 166 255 44 Remotely . | . . . . . . . . . . . . . . . . . . . . . . . . . . . . . . . . Salvage Created 19855 | 53 605 138 112 75 1620 1667 254 . . 314 1033 1405 414 607 410 763 320 136 . 3 18 1671 . 1716 1695 278 339 870 401 2554 384 Parts 1029 | 3 39 10 7 4 100 86 17 . . 10 52 91 18 33 19 38 12 7 . . . 90 . 64 119 27 20 44 25 67 27 Haulers Intercepted 22 | . 2 . . . 5 6 . . . . 1 . . . 1 1 . . . . . . . 5 . . . 1 . . . Recyclers Shooed 4 | 1 . . . . . 2 . . . . . . . . . . . . . . . . . 1 . . . . . . . Parts Field Recycled . | . . . . . . . . . . . . . . . . . . . . . . . . . . . . . . . . Retrieved Matter . | . . . . . . . . . . . . . . . . . . . . . . . . . . . . . . . . Parts Self-Destructed 37 | . . . . . . . 14 . . 9 . . . . . . 10 4 . . . . . . . . . . . . . Prevented 16 | . . . . . . . 11 . . 3 . . . . . . 2 . . . . . . . . . . . . . . Parts Restored . | . . . . . . . . . . . . . . . . . . . . . . . . . . . . . . . . Kills | -11 -10 -10 -10 -9 -8 -7 -7 -7 -7 -6 -6 -6 -6 -6 -6 -5 -5 -5 -5 -4 -4 -4 -4 -3 -3 -2 -2 -2 -1 -1 -1 ------- Run | Yrd Mat Min Exi Min Mat Fac Low Low Dat Pro Fac Ext Cet Arc Hub Fac Upp Upp Zhi Pro Fac Arm Lab Res Qua Res Tes Sec Acc Com Ac0 Combat Hostiles Destroyed 246 | . 12 4 . 2 32 22 7 . . 5 11 16 5 4 4 17 10 4 . 2 . 22 . 8 19 3 4 12 7 10 4 Melee 24 | . . . . . . 9 . . . . . . . . . . . . . . . . . . . . 1 4 1 9 . Guns 123 | . 8 3 . 2 12 7 . . . . 4 12 5 4 2 5 4 1 . . . 19 . 8 19 . . . 3 1 4 Cannons 34 | . 3 1 . . 3 4 3 . . 1 6 . . . . . 1 . . . . 3 . . . 3 3 3 . . . AOE 64 | . 1 . . . 17 2 4 . . 4 1 4 . . 2 12 4 3 . 2 . . . . . . . 5 3 . . Classes Destroyed 23 | 1 6 1 . . 4 2 1 . . . . . . . . . . 1 . 1 . 4 . 1 . . . 1 . . . Worker 19 | . 2 . . . 2 2 . . . . 6 . . . 1 1 . . . . . . . 1 . 1 . 1 1 1 . Builder 8 | . . 1 . . 3 . . . . . . . . . . 1 . . . . . . . . . . . 3 . . . Tunneler 6 | 2 1 . . . . 1 . . . . . 1 . . . . . . . . . . . 1 . . . . . . . Hauler 22 | . 2 . . . 5 6 . . . . 1 . . . 1 1 . . . . . . . 5 . . . 1 . . . Recycler 20 | . . . . . 1 5 . . . . 1 3 . . 1 . . . . . . . . 2 1 . . 1 1 4 . Minesweeper 3 | . . . . . . . 2 . . . . . . . . . . 1 . . . . . . . . . . . . . Operator 25 | . 1 . . . 3 . . . . . . 1 . 9 . 2 . . . . 1 . . 1 1 1 1 1 2 1 . Drone 11 | . . . . . . . . . . . . . . . . . . . . 2 . . . . . . . 3 6 . . Watcher 28 | . 2 . . . 4 3 . . . . 3 1 2 . 1 1 . . . . . 2 . 2 2 2 . 2 . 1 . Swarmer 60 | . 6 2 . 1 11 6 5 . . 4 . 4 . . 3 9 5 . . . . 2 . . . . . 2 . . . Cutter 2 | . . . . . . . . . . . . . . . . . . . . . . 2 . . . . . . . . . Grunt 60 | . 6 2 . 1 15 7 1 . . 1 3 . . . . 4 1 . . . . 8 . 1 8 . 2 . . . . Brawler 1 | . . . . . . . . . . . . . . . . . . . . . . 1 . . . . . . . . . Duelist 5 | . . . . . 1 . . . . . 1 . . . . . 3 . . . . . . . . . . . . . . Protector 1 | . . . . . 1 . . . . . . . . . . . . . . . . . . . . . . . . . . Sentry 39 | . . . . . 5 3 1 . . . 4 9 . 4 1 . 1 . . . . 3 . 3 3 . . 2 . . . Demolisher 1 | . . . . . . . . . . . . . . . . . . . . . . 1 . . . . . . . . . Specialist 2 | . . . . . . . . . . . . . . . . . . . . . . 2 . . . . . . . . . Hunter 16 | . . . . . . 3 . . . . . 2 . . . 1 . . . . . 2 . 3 . . . . . 5 . Programmer 27 | . . . . . . 3 . . . . 3 1 . . . 4 . . . . . . . . 8 3 2 2 1 . . Behemoth 1 | . . . . . . . . . . . . . . . . . . . . . . . . . . . . 1 . . . Armor Guard 1 | . . . . . . . . . . . . . . . . . . . . . . 1 . . . . . . . . . Cetus Guard 5 | . . . . . . . . . . . . . 5 . . . . . . . . . . . . . . . . . . S7 Guard 2 | . . . . . . . . . . . . . . . . . . . . . . . . . . . . 2 . . . M Guard 2 | . . . . . . . . . . . . . . . . . . . . . . . . . . . . . . 2 . Enhanced Grunt 2 | . . . . . . . . . . . . . . . . . . . . . . . . . . . . . . . 2 Combat Programmer 1 | . . . . . . . . . . . . . . . . . . . . . . . . . . . . . . 1 . Striker 1 | . . . . . . . . . . . . . . . . . . . . . . . . 1 . . . . . . . Thug 3 | . . . . . . . . . . . . . . . . . . 3 . . . . . . . . . . . . . Mutant 1 | . . . . . . . . . . . . . . . . . . 1 . . . . . . . . . . . . . Best Kill Streak 16 | 1 5 2 . 2 16 5 3 . . 4 4 6 3 9 5 7 12 3 . 2 1 5 . 5 4 3 2 5 5 4 2 Combat Bots Only 12 | . 3 2 . 2 10 3 3 . . 4 2 6 3 4 3 7 12 3 . 2 . 5 . 3 4 3 2 3 4 3 2 Max Kills in Single Turn 4 | 1 2 1 . 1 3 4 2 . . 2 2 3 2 1 2 3 2 2 . 1 1 2 . 1 2 2 1 4 3 2 1 Gunslinging 1 | . . . . . . . . . . . . . . . . . . . . . . . . . 1 . . . 1 . . Exploded 3 | . 1 . . . 3 2 2 . . 2 1 3 . . 2 3 2 2 . 1 . . . . . . . 2 3 . . Melee 1 | . . . . . . 1 . . . . . . . . . . . . . . . . . . . . 1 1 1 1 . Uniques/NPCs Destroyed 4 | . . . . . . . . . . . . . . . . . . . . . . . . . . . . . . 2 2 MAIN.C Shell (-1/Command) MAIN.C (-1/Command) A8 (-1/Access_0) A5 (-1/Access_0) Combat | -11 -10 -10 -10 -9 -8 -7 -7 -7 -7 -6 -6 -6 -6 -6 -6 -5 -5 -5 -5 -4 -4 -4 -4 -3 -3 -2 -2 -2 -1 -1 -1 -------- Run | Yrd Mat Min Exi Min Mat Fac Low Low Dat Pro Fac Ext Cet Arc Hub Fac Upp Upp Zhi Pro Fac Arm Lab Res Qua Res Tes Sec Acc Com Ac0 Hostile Shots Fired 2248 | . 50 14 . 5 117 252 44 . . 13 72 114 38 20 116 60 26 11 . . 8 97 . 23 98 2 45 257 167 332 267 Missed 960 | . 8 3 . 2 36 90 23 . . 5 33 41 14 5 52 16 11 4 . . 6 39 . 16 45 2 27 86 81 162 153 Hits 1288 | . 42 11 . 3 81 162 21 . . 8 39 73 24 15 64 44 15 7 . . 2 58 . 7 53 . 18 171 86 170 114 Melee 7 | . . . . . . 3 . . . . . . . . . . . . . . . 4 . . . . . . . . . Projectile 1281 | . 42 11 . 3 81 159 21 . . 8 39 73 24 15 64 44 15 7 . . 2 54 . 7 53 . 18 171 86 170 114 AOE 18 | . . . . . . 3 . . . . . . . . 1 3 . . . . . . . . . . 1 . . 10 . Critical Strikes 73 | . 1 1 . . 4 6 . . . . . 3 5 . 2 2 1 . . . . 8 . 1 5 . 1 6 5 9 13 Actively Blocked 10 | . . 1 . . . . . . . . . . . . . . . . . . . . . . . . . 2 . . 7 Damage Taken 22176 | . 534 129 . 25 1180 2502 239 . . 128 463 1117 680 366 1041 940 273 158 . 13 47 1250 . 320 1209 . 354 4156 959 2532 1561 Core 4579 | . 167 42 . 9 107 513 32 . . 13 80 167 150 . 150 120 12 22 . . . 163 . . 114 . 19 1141 270 740 548 Absorbed by Shields 1895 | . . . . . 36 . . . . . . 45 . . . . . . . . . 16 . . . . . . . 1341 457 Redirected to Shielding 350 | . 19 4 . . . . . . . . . . . . . . . . . . . 107 . . 112 . . . . 6 102 Ignored by Resistances 7207 | . . . . . 2 14 9 . . 10 . . . . . . . . . . . . . . . . . 482 998 3959 1733 Regen/Repaired (Parts) 1771 | . . . . . . 162 . . . . 33 . . . . 487 . . . . . . . 154 107 31 186 383 42 186 . Core Remaining (%) 59 | 100 . . . 12 80 . . . . 20 . . . . 35 . . . . 84 . . 79 . 91 . . 32 . . . Volleys Fired 1012 | 4 58 12 8 8 80 63 17 . . 12 73 64 18 29 9 79 16 11 . 4 19 77 . 63 73 9 18 47 53 40 48 Largest 3 | 2 2 2 1 2 3 3 1 . . 1 3 3 3 3 3 3 3 3 . 1 3 3 . 3 3 1 1 2 3 3 3 Hottest 300 | 60 100 85 65 100 169 110 40 . . 40 156 146 105 105 105 98 110 110 . 39 121 130 . 130 130 130 130 200 300 300 300 Shots Fired 2082 | 8 115 20 7 16 183 112 17 . . 12 143 170 54 87 25 150 33 20 . 4 21 210 . 114 199 9 18 50 59 86 140 Gun 1742 | 8 81 14 7 16 146 100 . . . . 90 162 54 87 24 143 28 12 . . 20 178 . 101 191 . . 6 59 75 140 Cannon 272 | . 33 6 . . 21 12 13 . . 10 53 6 . . . . 3 4 . . 1 30 . 2 8 9 18 36 . 7 . Launcher 52 | . . . . . 16 . 4 . . 2 . 2 . . 1 7 2 4 . 4 . 2 . . . . . 8 . . . Special 16 | . 1 . . . . . . . . . . . . . . . . . . . . . . 11 . . . . . 4 . Kinetic 1334 | 4 51 8 . . 51 88 13 . . 10 95 160 54 87 24 143 31 16 . . 3 204 . 101 191 . . . . . . Thermal 224 | . 34 12 7 . . 20 . . . . 48 8 . . . . . . . . 18 4 . 2 8 9 18 36 . . . Explosive 46 | . . . . . 16 . . . . . . 2 . . 1 7 2 4 . 4 . 2 . . . . . 8 . . . Electromagnetic 183 | 4 30 . . 16 116 4 4 . . 2 . . . . . . . . . . . . . . . . . . . 7 . Slashing 280 | . . . . . . . . . . . . . . . . . . . . . . . . . . . . 6 59 75 140 Robot Hit Streak 24 | 5 8 12 6 8 13 11 5 . . 4 11 23 8 14 6 6 8 3 . 1 3 8 . 24 20 5 5 11 5 12 5 Robot Miss Streak 7 | 1 6 3 2 6 4 5 3 . . 3 4 4 1 3 3 7 3 2 . 1 . 4 . 4 5 2 3 3 4 5 5 Penetration Max 2 | . . . . . . 1 . . . . 2 2 1 1 1 1 . . . . . 2 . 1 1 . . . 1 1 1 Secondary Targets 16 | . 1 . . 1 2 1 . . . . 1 1 . . . . . . . . . 1 . 1 3 . . . 2 . 2 Max Gunslinging Chain 1 | . 1 . . 1 1 1 . . . . 1 1 . . . . . . . . . 1 . 1 1 . . . 1 . 1 Shots Hit Robots 1227 | 6 55 13 6 6 117 112 13 . . 9 80 108 25 58 12 55 21 8 . 1 2 107 . 66 115 6 11 45 11 95 64 Core Hits 712 | 2 28 8 5 4 85 63 10 . . 8 39 61 17 27 11 45 11 16 . 2 1 63 . 35 52 7 6 42 10 30 24 Critical Kills 98 | . . . . . . 2 . . . . 5 15 6 5 1 2 . . . . 1 22 . 19 20 . . . . . . Critical Parts Destroyed 109 | . . . . . . . . . . . 7 21 8 5 2 1 1 . . . . 28 . 14 22 . . . . . . Critical Strikes 244 | . . . . . 1 6 . . . . 15 43 20 10 3 3 1 1 . . 1 56 . 37 42 . . . . 5 . Burn 1 | . . . . . . . . . . . 1 . . . . . . . . . . . . . . . . . . . . Destroy 230 | . . . . . . 2 . . . . 12 43 20 10 3 3 1 . . . 1 56 . 37 42 . . . . . . Blast 5 | . . . . . . 2 . . . . 2 . . . . . . 1 . . . . . . . . . . . . . Corrupt 1 | . . . . . 1 . . . . . . . . . . . . . . . . . . . . . . . . . . Sever 7 | . . . . . . 2 . . . . . . . . . . . . . . . . . . . . . . . 5 . Melee Attacks 250 | . . . . . . 69 2 . . 2 1 . . . . . . . . . . 5 4 . . 5 16 15 20 111 . Impact . | . . . . . . . . . . . . . . . . . . . . . . . . . . . . . . . . Slashing 241 | . . . . . . 69 2 . . 2 1 . . . . . . . . . . . . . . 5 16 15 20 111 . Piercing 9 | . . . . . . . . . . . . . . . . . . . . . . 5 4 . . . . . . . . Sneak Attacks 26 | . . . . . . 15 2 . . . . . . . . . . . . . . . . . . . 1 1 1 6 . Combat Hostiles 5 | . . . . . . 3 . . . . . . . . . . . . . . . . . . . . 1 . . 1 . Follow-up Attacks . | . . . . . . . . . . . . . . . . . . . . . . . . . . . . . . . . Damage Inflicted 55625 | 76 915 235 97 113 4413 4242 612 . . 503 1787 1417 861 1596 585 2783 886 754 . 142 32 1660 . 583 1243 627 1027 6137 2252 16088 3959 Guns 19322 | 76 514 130 97 113 1730 1259 . . . . 925 981 861 1596 354 1445 353 148 . . 32 1189 . 583 1117 . . . 946 914 3959 Cannons 6430 | . 324 105 . . 381 225 251 . . 147 719 77 . . . . 31 69 . . . 183 . . 126 433 502 2738 . 119 . Explosions 10062 | . 77 . . . 2302 515 153 . . 154 143 359 . . 231 1338 502 537 . 142 . 288 . . . 121 . 2534 666 . . Melee 19742 | . . . . . . 2243 208 . . 202 . . . . . . . . . . . . . . . 73 525 865 640 14986 . Ramming 69 | . . . . . . . . . . . . . . . . . . . . . . . . . . . . . . 69 . Kinetic 12372 | 49 321 67 . . 567 1103 251 . . 147 947 959 861 1596 354 1445 384 217 . . 32 1372 . 583 1117 . . . . . . Thermal 5880 | . 401 168 97 . 255 334 . . . . 727 99 . . . . . . . . . . . . 126 433 502 2738 . . . Explosive 9314 | . . . . . 2047 515 . . . . 113 359 . . 231 1338 502 537 . 142 . 288 . . . 121 . 2534 587 . . Electromagnetic 2429 | 27 193 . . 113 1544 47 153 . . 154 . . . . . . . . . . . . . . . . . . 79 119 . Impact . | . . . . . . . . . . . . . . . . . . . . . . . . . . . . . . . . Slashing 25561 | . . . . . . 2243 208 . . 202 . . . . . . . . . . . . . . . 73 525 865 1586 15900 3959 Piercing . | . . . . . . . . . . . . . . . . . . . . . . . . . . . . . . . . Highest Corruption 11 | . 4 4 4 4 . 8 . . . . 2 . . . 5 4 4 . . . . . . . 11 . 3 3 . . . Average Corruption 4 | . 3 4 4 4 . 7 . . . . 1 . . . 3 2 3 . . . . . . . 7 . 2 3 . . . Corruption Purged 14 | . . . . . . 8 . . . . 2 . . . . . 4 . . . . . . . . . . . . . . Corruption Blocked . | . . . . . . . . . . . . . . . . . . . . . . . . . . . . . . . . Effects 164 | . 20 14 17 7 . 42 . . . . 12 . . . . 7 1 . . . . . . . 27 . 6 11 . . . Message Errors 34 | . 4 5 4 3 . 7 . . . . 2 . . . . . . . . . . . . . 8 . . 1 . . . Matter Fused 48 | . 5 4 4 1 . 10 . . . . 7 . . . . 2 1 . . . . . . . 8 . . 6 . . . Heat Flow Errors 21 | . 1 . 3 . . 8 . . . . 2 . . . . 2 . . . . . . . . 3 . 1 1 . . . Energy Discharges 8 | . . 1 . . . 4 . . . . . . . . . 1 . . . . . . . . 1 . . 1 . . . Parts Rejected 1 | . . . . . . 1 . . . . . . . . . . . . . . . . . . . . . . . . . Parts Fused 4 | . 2 . . 1 . 1 . . . . . . . . . . . . . . . . . . . . . . . . . Data Loss (minor) 26 | . 6 3 1 1 . 6 . . . . . . . . . . . . . . . . . . 3 . 4 2 . . . Data Loss (major) 9 | . . 1 2 1 . 2 . . . . . . . . . 1 . . . . . . . . 1 . 1 . . . . Misfires 5 | . 1 . . . . 3 . . . . 1 . . . . . . . . . . . . . . . . . . . . Alerts 3 | . . . 2 . . . . . . . . . . . . 1 . . . . . . . . . . . . . . . Weapon Failures 5 | . 1 . 1 . . . . . . . . . . . . . . . . . . . . . 3 . . . . . . Overload Shots 9 | . . . . . . . . . . . . . . . . . . . . . 8 1 . . . . . . . . . Overflow Damage 3642 | . . . . . 49 194 69 . . 5 14 15 . . 11 53 79 23 . . . . . . . 42 308 331 572 1877 . Projectiles 199 | . . . . . . . 19 . . . 14 2 . . . . . . . . . . . . . 7 111 46 . . . Explosions 719 | . . . . . 49 36 . . . 5 . 13 . . 11 53 79 23 . . . . . . . 35 . 243 172 . . Melee 2724 | . . . . . . 158 50 . . . . . . . . . . . . . . . . . . . 197 42 400 1877 . Knockbacks 7 | . . . . . . . 3 . . . 3 . . . . . . . . . . . . . . . . . . 1 . Impact 1 | . . . . . . . . . . . . . . . . . . . . . . . . . . . . . . 1 . Kinetic 6 | . . . . . . . 3 . . . 3 . . . . . . . . . . . . . . . . . . . . Secondary . | . . . . . . . . . . . . . . . . . . . . . . . . . . . . . . . . Self-Inflicted Damage 232 | . . . . . 50 . . . . . 31 . . . 13 7 . . . 13 . . . . . . . 50 68 . . Shots 8 | . . . . . 2 . . . . . 1 . . . 1 1 . . . 1 . . . . . . . 1 1 . . Rammed . | . . . . . . . . . . . . . . . . . . . . . . . . . . . . . . . . Targets Rammed 2 | . . . . . . . . . . . . . . . . . . . . . . . . . . . . . . 2 . Kicked 2 | . . . . . . . . . . . . . . . . . . . . . . . . . . . . . . 2 . Crushed . | . . . . . . . . . . . . . . . . . . . . . . . . . . . . . . . . Highest Temperature 388 | . 296 135 279 175 198 283 . . . 6 388 265 119 144 164 217 84 83 . . 1 108 . 104 116 56 45 170 . 290 210 Average Temperature 66 | . 72 45 96 69 64 89 . . . 3 90 71 71 57 56 47 30 30 . . 1 19 . 39 59 30 19 56 . 171 108 Received Heat Transfer 3121 | . 222 51 . . 574 498 42 . . 45 72 162 9 63 96 57 30 45 . . 12 286 . 18 187 . 63 126 140 320 3 Effects 1 | . . . . . . . . . . . 1 . . . . . . . . . . . . . . . . . . . . Energy Bleed 1 | . . . . . . . . . . . 1 . . . . . . . . . . . . . . . . . . . . Siege Activations . | . . . . . . . . . . . . . . . . . . . . . . . . . . . . . . . . Martial Activations . | . . . . . . . . . . . . . . . . . . . . . . . . . . . . . . . . Shielding Activations . | . . . . . . . . . . . . . . . . . . . . . . . . . . . . . . . . Robots Disrupted . | . . . . . . . . . . . . . . . . . . . . . . . . . . . . . . . . Combat Hostiles . | . . . . . . . . . . . . . . . . . . . . . . . . . . . . . . . . Robots Corrupted 2 | . . . . . 1 . . . . . . . . . . . . . . . . . . . . . . . . 1 . Combat Hostiles 1 | . . . . . . . . . . . . . . . . . . . . . . . . . . . . . . 1 . Parts Fried 13 | . 1 . . . 9 . . . . . . . . . . . 2 . . . . . . . . . . . . 1 . Impact Corruptions 1 | . . . . . . . . . . . . . . . . . . . . . . . . . . . . . . 1 . Robots Melted . | . . . . . . . . . . . . . . . . . . . . . . . . . . . . . . . . Combat Hostiles . | . . . . . . . . . . . . . . . . . . . . . . . . . . . . . . . . Parts Melted 5 | . . 1 . . . . . . . . 2 . . . . . . . . . . . . . . 2 . . . . . Heat Transferred 6903 | . 816 370 222 . 200 710 . . . . 909 50 . . . . . . . . . . . . 111 333 407 2775 . . . Parts Sabotaged . | . . . . . . . . . . . . . . . . . . . . . . . . . . . . . . . . Parts Stolen . | . . . . . . . . . . . . . . . . . . . . . . . . . . . . . . . . Parts Stripped . | . . . . . . . . . . . . . . . . . . . . . . . . . . . . . . . . Power Chain Reactions 8 | . 2 . . . 5 . . . . . 1 . . . . . . . . . . . . . . . . . . . . Alert | -11 -10 -10 -10 -9 -8 -7 -7 -7 -7 -6 -6 -6 -6 -6 -6 -5 -5 -5 -5 -4 -4 -4 -4 -3 -3 -2 -2 -2 -1 -1 -1 ------- Run | Yrd Mat Min Exi Min Mat Fac Low Low Dat Pro Fac Ext Cet Arc Hub Fac Upp Upp Zhi Pro Fac Arm Lab Res Qua Res Tes Sec Acc Com Ac0 Maximum Alert Level 5 | . . . . . 3 1 . . . . 2 2 . . 2 2 . . . . . 3 . . 1 1 . 5 5 5 . Low Security (%) 54 | 100 100 100 . 100 50 39 . . . . 42 62 100 100 52 2 . . . . 100 40 . 100 44 80 100 57 . . . Level 1 19 | . . . . . 19 60 . . . . 43 28 . . 38 57 . . . . . 5 . . 55 19 . 14 . . . Level 2 7 | . . . . . 17 . . . . . 14 8 . . 8 40 . . . . . 36 . . . . . . . . . Level 3 4 | . . . . . 12 . . . . . . . . . . . . . . . . 18 . . . . . . 55 . . Level 4 6 | . . . . . . . . . . . . . . . . . . . . . . . . . . . . . 2 49 . Level 5 6 | . . . . . . . . . . . . . . . . . . . . . . . . . . . . . . 50 . High Security . | . . . . . . . . . . . . . . . . . . . . . . . . . . . . . . . . Max Security 2 | . . . . . . . . . . . . . . . . . . . . . . . . . . . . 28 42 . . Peak Influence 2441 | 5 163 70 . 77 804 361 . . . . 569 440 78 148 417 489 . . . . 150 817 . 117 392 215 137 1805 2441 1501 . Initial 1501 | . 3 36 . . . 361 . . . . 41 278 61 11 . 182 . . . . 150 37 . . 6 213 . 33 1100 1501 . Average 271 | 2 83 17 . 22 256 237 . . . . 234 171 32 35 212 335 . . . . 109 426 . 29 225 91 78 590 1410 1327 . Influence Increases 15976 | 10 430 212 10 157 1327 1032 235 . . 211 1204 615 211 227 482 1184 355 5 . 10 187 1703 . 372 794 324 506 1012 1134 1351 676 Destroy 0b10 Robot/C 5940 | . 240 140 . 120 640 440 140 . . 120 220 340 160 80 80 480 200 . . . . 720 . 160 380 60 80 240 280 620 . Destroy 0b10 Robot/NC 745 | 10 40 5 10 . 95 85 10 . . 5 55 45 10 45 20 35 . 5 . 10 5 10 . 60 20 20 5 45 20 75 . Destroy Leader 1216 | . 48 30 . 20 158 148 10 . . 10 88 54 . . 24 96 20 . . . . 164 . 64 54 14 10 36 20 148 . Allied During Kill 539 | . . 22 . 17 2 . . . . 16 5 44 14 . . 29 . . . . . 347 . . . . . . 30 13 . Trap Triggered on 0b10 60 | . . . . . . . . . . . . . . . . . . . . . . 40 . . 20 . . . . . . Successful Hack 869 | . 32 . . . 42 86 . . . . 149 30 . . . 57 . . . . 3 61 . 12 134 22 98 78 42 23 . Select Force Hacks 190 | . . . . . 90 . . . . . . . . . 100 . . . . . . . . . . . . . . . . Disable Machine 1215 | . 30 . . . 90 60 . . . . 105 . . 75 30 135 . . . . . 120 . . 75 15 90 180 120 30 60 Anti-Garrison Action 400 | . . . . . . . . . . . 400 . . . . . . . . . . . . . . . . . . . . Destroy Structure 2217 | . 10 . . . 120 33 . . . . 62 27 12 12 18 252 . . . . 14 36 . 16 36 78 93 258 262 277 601 Advance Influence 150 | . . . . . . . . . . . . . . . . . . . . . 150 . . . . . . . . . . Partial Spotted 300 | . . . . . . 30 . . . . 45 45 . 15 . . . . . . 15 30 . 45 15 . 15 . 30 . 15 Lose Combat Pursuer 1635 | . 30 15 . . 90 150 75 . . 60 75 30 15 . 210 . 135 . . . . 75 . 15 60 15 15 75 330 165 . Miscellaneous 500 | . . . . . . . . . . . . . . . . 100 . . . . . 100 . . . 100 100 100 . . . Influence Decreases 17415 | 5 341 301 15 157 531 1477 349 156 81 145 701 1074 293 255 110 1098 476 275 67 10 110 1096 684 361 425 704 446 673 1221 1960 1818 Entered New Map 5862 | . 2 58 5 . . 435 131 46 81 . 25 291 49 17 . 190 170 65 67 . . 40 684 . 5 167 . 27 723 846 1738 Time Decay 6727 | 5 319 213 10 87 461 562 198 110 . 120 503 398 136 218 60 398 286 190 . 10 110 446 . 361 410 212 286 206 198 214 . Lost Part 650 | . 20 10 . 10 70 180 . . . 10 . 50 40 20 50 20 . . . . . 10 . . 10 . 10 140 . . . Lost Ally 1961 | . . 20 . 60 . . 20 . . 15 30 88 68 . . 40 20 20 . . . 300 . . . . . . 300 900 80 Purge Threat 2215 | . . . . . . 300 . . . . 143 247 . . . 450 . . . . . 300 . . . 325 150 300 . . . Squads Dispatched 139 | . 2 . . . 6 18 . . . . 6 2 . . 8 10 . . . . 1 12 . 5 8 4 9 14 30 4 . Investigation 36 | . 1 . . . 3 4 . . . . 3 . . . 6 6 . . . . . 2 . 3 1 2 3 . 1 1 . Extermination 25 | . . . . . . 3 . . . . 3 . . . . 3 . . . . 1 3 . . 4 2 3 1 2 . . Reinforcement 30 | . 1 . . . 1 8 . . . . . 2 . . 2 . . . . . . 2 . 2 3 . 1 1 6 1 . Assault 44 | . . . . . 2 . . . . . . . . . . . . . . . . 5 . . . . 2 12 21 2 . Garrison 4 | . . . . . . 3 . . . . . . . . . 1 . . . . . . . . . . . . . . . Intercept . | . . . . . . . . . . . . . . . . . . . . . . . . . . . . . . . . Searches Triggered . | . . . . . . . . . . . . . . . . . . . . . . . . . . . . . . . . Data Miner Redirects 2 | . . . . . . . . . . . . . . . . 1 . . . . . 1 . . . . . . . . . Construction Impeded 7 | . . . . . 1 1 . . . . . 1 . . . . . . . . . . . . 1 . 1 . 2 . . Haulers Reinforced 11 | . . . . . . 6 . . . . . . . . . . . . . . . . . 2 . . . 1 2 . . Active Scanning Responses . | . . . . . . . . . . . . . . . . . . . . . . . . . . . . . . . . Cargo Convoy Interrupts 1 | . . . . . . . . . . . 1 . . . . . . . . . . . . . . . . . . . . Stealth | -11 -10 -10 -10 -9 -8 -7 -7 -7 -7 -6 -6 -6 -6 -6 -6 -5 -5 -5 -5 -4 -4 -4 -4 -3 -3 -2 -2 -2 -1 -1 -1 --------- Run | Yrd Mat Min Exi Min Mat Fac Low Low Dat Pro Fac Ext Cet Arc Hub Fac Upp Upp Zhi Pro Fac Arm Lab Res Qua Res Tes Sec Acc Com Ac0 Distress Signals 55 | . 2 . . . 1 5 . . . . 1 2 2 . 2 . . . . . . 1 . 4 2 1 1 3 5 23 . Communications Jammed . | . . . . . . . . . . . . . . . . . . . . . . . . . . . . . . . . Distress Signals . | . . . . . . . . . . . . . . . . . . . . . . . . . . . . . . . . Times Spotted 588 | . 18 7 . 5 48 45 16 . . 11 22 21 10 18 31 29 16 4 . 1 10 61 . 18 25 6 22 42 47 34 21 Peak Tracking Total 18 | . 4 3 . 3 9 8 7 . . 4 6 4 5 1 17 5 5 4 . 2 9 10 . 4 6 2 14 16 18 14 6 Tactical Retreats 59 | . 2 1 . . 3 5 4 . . 2 2 2 1 . 3 . 4 . . . . 4 . 1 3 1 1 3 8 8 1 Traps | -11 -10 -10 -10 -9 -8 -7 -7 -7 -7 -6 -6 -6 -6 -6 -6 -5 -5 -5 -5 -4 -4 -4 -4 -3 -3 -2 -2 -2 -1 -1 -1 ------- Run | Yrd Mat Min Exi Min Mat Fac Low Low Dat Pro Fac Ext Cet Arc Hub Fac Upp Upp Zhi Pro Fac Arm Lab Res Qua Res Tes Sec Acc Com Ac0 Traps Triggered 29 | . 6 . . . 1 3 . . . . 1 4 . . 1 . . . . . . 2 . 3 . 1 1 . 5 1 . Indirectly . | . . . . . . . . . . . . . . . . . . . . . . . . . . . . . . . . Trap Hack Attempts . | . . . . . . . . . . . . . . . . . . . . . . . . . . . . . . . . Triggered . | . . . . . . . . . . . . . . . . . . . . . . . . . . . . . . . . Disarmed . | . . . . . . . . . . . . . . . . . . . . . . . . . . . . . . . . Reprogrammed 20 | . . . . . . . . . . . . . . . . 4 . . . . . 4 . . 12 . . . . . . Reused 12 | . . . . . . . 2 . . 1 . . . . . . 3 . . . . 4 . . 2 . . . . . . Traps Extracted 1 | . . . . . . . . . . 1 . . . . . . . . . . . . . . . . . . . . . Installed 7 | . . . . . . . 2 . . 2 . . . . . . 3 . . . . . . . . . . . . . . Triggered 12 | . . . . . . . 2 . . 1 . . . . . . 3 . . . . 4 . . 2 . . . . . . Most Traps Carried 4 | . . . . . . . 4 4 4 4 3 3 3 3 3 3 3 4 4 4 4 4 4 4 4 4 4 4 . . . Machines | -11 -10 -10 -10 -9 -8 -7 -7 -7 -7 -6 -6 -6 -6 -6 -6 -5 -5 -5 -5 -4 -4 -4 -4 -3 -3 -2 -2 -2 -1 -1 -1 ---------- Run | Yrd Mat Min Exi Min Mat Fac Low Low Dat Pro Fac Ext Cet Arc Hub Fac Upp Upp Zhi Pro Fac Arm Lab Res Qua Res Tes Sec Acc Com Ac0 Machines Disabled 85 | . 2 . . . 6 4 . . . . 7 . . 5 2 9 1 1 . . . 8 1 . 5 1 7 12 8 2 4 Max in Single Turn 4 | . 1 . . . 1 2 . . . . 1 . . 1 1 4 1 1 . . . 1 1 . 1 1 2 1 1 1 1 Garrison Access 8 | . . . . . . 1 . . . . 2 . . . . 1 . . . . 1 . . 1 1 1 . . . . . Network Hub 3 | . . . . . . . . . . . . . . . 3 . . . . . . . . . . . . . . . . Machines Repaired . | . . . . . . . . . . . . . . . . . . . . . . . . . . . . . . . . Machines Dismantled . | . . . . . . . . . . . . . . . . . . . . . . . . . . . . . . . . Machines Sabotaged 2 | . . . . . . . . . . . . . . . 2 . . . . . . . . . . . . . . . . Overloaded Fab Kills . | . . . . . . . . . . . . . . . . . . . . . . . . . . . . . . . . Hacking | -11 -10 -10 -10 -9 -8 -7 -7 -7 -7 -6 -6 -6 -6 -6 -6 -5 -5 -5 -5 -4 -4 -4 -4 -3 -3 -2 -2 -2 -1 -1 -1 --------- Run | Yrd Mat Min Exi Min Mat Fac Low Low Dat Pro Fac Ext Cet Arc Hub Fac Upp Upp Zhi Pro Fac Arm Lab Res Qua Res Tes Sec Acc Com Ac0 Machines Accessed 174 | . 9 . 2 . 13 20 . . 3 . 23 12 1 . 6 16 1 1 4 . 3 10 . 3 13 8 8 8 4 6 . Terminals 105 | . 7 . . . 9 12 . . . . 10 10 1 . 5 6 . . . . 1 7 . . 9 4 6 8 4 6 . Fabricators 13 | . . . . . . 4 . . . . 2 . . . . 3 . . . . . 2 . . . 2 . . . . . Repair Stations 5 | . 1 . . . . 1 . . . . 2 . . . . 1 . . . . . . . . . . . . . . . Recycling Units 17 | . 1 . . . 2 1 . . . . 5 2 . . . 4 . . . . . 1 . 1 . . . . . . . Scanalyzers 13 | . . . . . 2 1 . . . . 2 . . . . 1 . . . . 1 . . 1 3 1 1 . . . . Garrison Access 10 | . . . . . . 1 . . . . 2 . . . 1 1 . . . . 1 . . 1 1 1 1 . . . . Total Hacks 678 | . 32 . 6 . 39 71 . . 25 . 71 37 1 . 16 83 1 1 17 . 7 67 . 7 58 39 44 31 10 15 . Successful 379 | . 19 . 6 . 25 43 . . 25 . 41 17 . . 5 47 1 1 17 . 4 28 . 3 28 21 20 20 2 6 . Failed 296 | . 13 . . . 13 28 . . . . 30 20 1 . 11 35 . . . . 3 39 . 4 29 18 24 11 8 9 . Catastrophic 42 | . 2 . . . 2 3 . . . . 5 2 . . 1 5 . . . . . 6 . . 4 2 2 2 5 1 . Database Lockouts 3 | . . . . . 1 . . . . . . . . . . 1 . . . . . . . . 1 . . . . . . Manual 297 | . 26 . 1 . 20 33 . . . . 24 22 . . 14 44 . . . . 2 26 . 2 16 18 17 19 4 9 . Terminals 464 | . 29 . . . 25 52 . . . . 32 33 1 . 14 51 . . . . 4 54 . . 46 29 38 31 10 15 . Fabricators 53 | . . . . . . 13 . . . . 13 . . . . 12 . . . . . 10 . . . 5 . . . . . Repair Stations 14 | . 1 . . . . 2 . . . . 7 . . . . 4 . . . . . . . . . . . . . . . Recycling Units 32 | . 2 . . . 5 1 . . . . 6 4 . . . 9 . . . . . 3 . 2 . . . . . . . Scanalyzers 42 | . . . . . 9 1 . . . . 8 . . . . 6 . . . . 1 . . 2 11 1 3 . . . . Garrison Access 23 | . . . . . . 2 . . . . 5 . . . 2 1 . . . . 2 . . 3 1 4 3 . . . . Terminal Hacks 204 | . 10 . 6 . 5 24 . . 25 . 10 10 . . 1 18 1 1 17 . 1 17 . . 17 14 13 10 1 3 . Record 16 | . . . 5 . . . . . 6 . . . . . . . . . 5 . . . . . . . . . . . . Part Schematic 22 | . 1 . . . . 2 . . 11 . . 1 . . . 3 . . 4 . . . . . . . . . . . . Robot Schematic 6 | . 1 . . . . . . . 5 . . . . . . . . . . . . . . . . . . . . . . Robot Analysis 12 | . 3 . . . 1 3 . . . . . . . . . . . . 4 . . . . . . . . 1 . . . Prototype ID Bank 15 | . . . . . 2 1 . . 3 . 1 2 . . . 1 . . 4 . . . . . . 1 . . . . . Open Door 4 | . . . . . . . . . . . . . . . . . 1 1 . . . 1 . . . . . . . 1 . Level Access Points 3 | . . . . . . . . . . . . . . . 1 . . . . . . 1 . . 1 . . . . . . Branch Access Points 6 | . . . . . 1 1 . . . . 1 . . . . 1 . . . . . . . . . 1 . . 1 . . Emergency Access Points 10 | . . . . . . 2 . . . . . . . . . 1 . . . . . 2 . . 1 1 2 1 . . . Machine Index 1 | . . . . . . . . . . . 1 . . . . . . . . . . . . . . . . . . . . Terminal Index 6 | . 1 . . . . 1 . . . . 1 . . . . 1 . . . . . . . . 1 . 1 . . . . Scanalyzer Index 3 | . . . . . . . . . . . 1 . . . . . . . . . . . . . 1 . 1 . . . . Garrison Index 1 | . . . . . . 1 . . . . . . . . . . . . . . . . . . . . . . . . . Alert Level 11 | . . . . . . 1 . . . . . 1 . . . 2 . . . . . 4 . . . 1 . 2 . . . Unreport Threat 22 | . . . . . . 2 . . . . 1 2 . . . 4 . . . . . 3 . . . 5 2 3 . . . Locate Traps 25 | . 1 . . . . 4 . . . . 2 3 . . . 1 . . . . . 3 . . 4 2 3 1 . 1 . Reprogram Traps 5 | . . . . . . . . . . . . . . . . 1 . . . . . 1 . . 3 . . . . . . Dispatch Records 1 | . . . . . . . . . . . . . . . . . . . . . . . . . 1 . . . . . . Security Status 1 | . . . . . . . . . . . . . . . . . . . . . . . . . 1 . . . . . . Recall Investigation 6 | . 1 . . . 1 2 . . . . . . . . . . . . . . . . . . 2 . . . . . . Recall Extermination 2 | . . . . . . . . . . . . . . . . . . . . . . . . . . 2 . . . . . Recall Reinforcements 3 | . 1 . . . . . . . . . . 1 . . . . . . . . . . . . 1 . . . . . . Hauler Manifests 1 | . . . . . . . . . . . . . . . . 1 . . . . . . . . . . . . . . . Registered Components 6 | . . . . . . 1 . . . . 1 . . . . 1 . . . . 1 1 . . . . 1 . . . . Registered Prototypes 2 | . . . . . . 1 . . . . . . . . . . . . . . . 1 . . . . . . . . . Zone Layout 9 | . 1 . . . . 2 . . . . 1 . . . . 1 . . . . . . . . 1 1 1 1 . . . Proto ID Catalog 1 | . . . 1 . . . . . . . . . . . . . . . . . . . . . . . . . . . . Protovariant Controls 2 | . . . . . . . . . . . . . . . . . . . . . . . . . . . 2 . . . . Activate Exoskeleton 1 | . . . . . . . . . . . . . . . . . . . . . . . . . . . . 1 . . . Disengage Seal 1 | . . . . . . . . . . . . . . . . . . . . . . . . . . . . . . 1 . Fabricator Hacks 13 | . . . . . . 5 . . . . 3 . . . . 4 . . . . . . . . . 1 . . . . . Network Status 6 | . . . . . . 1 . . . . 2 . . . . 2 . . . . . . . . . 1 . . . . . Load Schematic 3 | . . . . . . 2 . . . . . . . . . 1 . . . . . . . . . . . . . . . Build 4 | . . . . . . 2 . . . . 1 . . . . 1 . . . . . . . . . . . . . . . Repair Station Hacks 7 | . . . . . . 2 . . . . 3 . . . . 2 . . . . . . . . . . . . . . . Scan Component 4 | . . . . . . 1 . . . . 2 . . . . 1 . . . . . . . . . . . . . . . Repair 3 | . . . . . . 1 . . . . 1 . . . . 1 . . . . . . . . . . . . . . . Recycling Unit Hacks 12 | . 1 . . . 1 1 . . . . 3 2 . . . 3 . . . . . 1 . . . . . . . . . Retrieve Components 12 | . 1 . . . 1 1 . . . . 3 2 . . . 3 . . . . . 1 . . . . . . . . . Scanalyzer 30 | . . . . . 7 1 . . . . 8 . . . . 6 . . . . 1 . . 1 4 1 1 . . . . Insert Component 6 | . . . . . 3 . . . . . 1 . . . . 2 . . . . . . . . . . . . . . . Analyze 9 | . . . . . 3 . . . . . 2 . . . . 4 . . . . . . . . . . . . . . . Retrieve Study 15 | . . . . . 1 1 . . . . 5 . . . . . . . . . 1 . . 1 4 1 1 . . . . Garrison Access Hacks 6 | . . . . . . 1 . . . . . . . . . 1 . . . . 1 . . 1 1 1 . . . . . Seal Access 6 | . . . . . . 1 . . . . . . . . . 1 . . . . 1 . . 1 1 1 . . . . . Unauthorized Hacks 107 | . 8 . . . 12 9 . . . . 14 5 . . 4 13 . . . . 1 10 . 1 6 4 6 10 1 3 . Terminals 79 | . 8 . . . 9 7 . . . . 6 5 . . 4 5 . . . . 1 7 . . 5 2 6 10 1 3 . Track 14 | . . . . . 1 1 . . . . 1 . . . . 2 . . . . . 1 . . 1 . 3 4 . . . Assimilate 2 | . . . . . 1 . . . . . 1 . . . . . . . . . . . . . . . . . . . . Botnet 43 | . 3 . . . 2 6 . . . . 4 5 . . . 3 . . . . 1 4 . . 4 2 2 3 1 3 . Disrupt 3 | . . . . . . . . . . . . . . . . . . . . . . . . . . . 1 2 . . . Operators 3 | . . . . . . . . . . . . . . . . . . . . . . 2 . . . . . 1 . . . Skim 10 | . 5 . . . 5 . . . . . . . . . . . . . . . . . . . . . . . . . . Sabotage 4 | . . . . . . . . . . . . . . . 4 . . . . . . . . . . . . . . . . Fabricators 19 | . . . . . . 2 . . . . 6 . . . . 6 . . . . . 3 . . . 2 . . . . . Report 2 | . . . . . . . . . . . 1 . . . . 1 . . . . . . . . . . . . . . . Prioritize 5 | . . . . . . 1 . . . . 1 . . . . 2 . . . . . 1 . . . . . . . . . Liberate 4 | . . . . . . . . . . . 2 . . . . 1 . . . . . . . . . 1 . . . . . Fabnet 3 | . . . . . . . . . . . 1 . . . . 1 . . . . . 1 . . . . . . . . . Haulers 4 | . . . . . . 1 . . . . 1 . . . . 1 . . . . . . . . . 1 . . . . . Recompile 1 | . . . . . . . . . . . . . . . . . . . . . . 1 . . . . . . . . . Repair Stations . | . . . . . . . . . . . . . . . . . . . . . . . . . . . . . . . . Recycling Units 5 | . . . . . 2 . . . . . . . . . . 2 . . . . . . . 1 . . . . . . . Monitor 1 | . . . . . . . . . . . . . . . . 1 . . . . . . . . . . . . . . . Recyclers 2 | . . . . . . . . . . . . . . . . 1 . . . . . . . 1 . . . . . . . Tunnel 2 | . . . . . 2 . . . . . . . . . . . . . . . . . . . . . . . . . . Scanalyzers 2 | . . . . . 1 . . . . . . . . . . . . . . . . . . . 1 . . . . . . Researchers 1 | . . . . . . . . . . . . . . . . . . . . . . . . . 1 . . . . . . Extract 1 | . . . . . 1 . . . . . . . . . . . . . . . . . . . . . . . . . . Garrison Access 2 | . . . . . . . . . . . 2 . . . . . . . . . . . . . . . . . . . . Jam 2 | . . . . . . . . . . . 2 . . . . . . . . . . . . . . . . . . . . Data Cores Recovered 8 | . . . . . 2 . . . . . . 1 . . . 1 . . . . 1 . . . 1 1 . 1 . . . Used 1 | . . . . . . . . . . . . . . . . 1 . . . . . . . . . . . . . . . Hacking Detections 125 | . 8 . . . 13 20 . . . . 18 11 1 . 4 9 . . . . 2 6 . 1 10 6 5 5 4 2 . Full Trace Events 9 | . . . . . . 4 . . . . . . . . 2 1 . . . . . 1 . . . . . . 1 . . Feedback Events . | . . . . . . . . . . . . . . . . . . . . . . . . . . . . . . . . Feedback Blocked . | . . . . . . . . . . . . . . . . . . . . . . . . . . . . . . . . Robot Schematics Acquired 6 | . 1 . . . . . . . 5 . . . . . . . . . . . . . . . . . . . . . . Robots Built . | . . . . . . . . . . . . . . . . . . . . . . . . . . . . . . . . Authchips . | . . . . . . . . . . . . . . . . . . . . . . . . . . . . . . . . Time . | . . . . . . . . . . . . . . . . . . . . . . . . . . . . . . . . Total Robot Build Rating . | . . . . . . . . . . . . . . . . . . . . . . . . . . . . . . . . Part Schematics Acquired 30 | . 1 . . . 4 2 . . 11 . 1 1 . . . 5 . . 4 . . . . . . . . 1 . . . Parts Built 5 | . . . . . . 3 . . . . 1 . . . . 1 . . . . . . . . . . . . . . . Authchips . | . . . . . . . . . . . . . . . . . . . . . . . . . . . . . . . . Time 222 | . . . . . . 94 . . . . 64 . . . . 64 . . . . . . . . . . . . . . . Total Part Build Rating 27 | . . . . . . 11 . . . . 8 . . . . 8 . . . . . . . . . . . . . . . Part Studies Acquired 15 | . . . . . 1 1 . . . . 5 . . . . . . . . . 1 . . 1 4 1 1 . . . . Parts Repaired 3 | . . . . . . 1 . . . . 1 . . . . 1 . . . . . . . . . . . . . . . Time 139 | . . . . . . 38 . . . . 47 . . . . 54 . . . . . . . . . . . . . . . Parts Recycled . | . . . . . . . . . . . . . . . . . . . . . . . . . . . . . . . . Recycled Matter . | . . . . . . . . . . . . . . . . . . . . . . . . . . . . . . . . Retrieved Matter . | . . . . . . . . . . . . . . . . . . . . . . . . . . . . . . . . Retrieved Components 36 | . 2 . . . 10 5 . . . . 3 12 . . . 3 . . . . . 1 . . . . . . . . . Parts Scanalyzed 6 | . . . . . 3 . . . . . 1 . . . . 2 . . . . . . . . . . . . . . . Part Schematics Acquired 6 | . . . . . 3 . . . . . 1 . . . . 2 . . . . . . . . . . . . . . . Parts Damaged 1 | . . . . . . . . . . . 1 . . . . . . . . . . . . . . . . . . . . Bothacking | -11 -10 -10 -10 -9 -8 -7 -7 -7 -7 -6 -6 -6 -6 -6 -6 -5 -5 -5 -5 -4 -4 -4 -4 -3 -3 -2 -2 -2 -1 -1 -1 ------------ Run | Yrd Mat Min Exi Min Mat Fac Low Low Dat Pro Fac Ext Cet Arc Hub Fac Upp Upp Zhi Pro Fac Arm Lab Res Qua Res Tes Sec Acc Com Ac0 Used RIF Installer . | . . . . . . . . . . . . . . . . . . . . . . . . . . . . . . . . Robots Hacked 20 | . . . . . . . . . . . . . . . . 1 1 . . . . 5 . 11 . . . . . 2 . Non-combat 5 | . . . . . . . . . . . . . . . . . . . . . . . . 3 . . . . . 2 . Combat 15 | . . . . . . . . . . . . . . . . 1 1 . . . . 5 . 8 . . . . . . . Robot Hacks Applied 13 | . . . . . . . . . . . . . . . . . . . . . . . . 11 . . . . . 2 . parse_system 12 | . . . . . . . . . . . . . . . . . . . . . . . . 10 . . . . . 2 . check_alert 1 | . . . . . . . . . . . . . . . . . . . . . . . . 1 . . . . . . . Relay Couplers Released . | . . . . . . . . . . . . . . . . . . . . . . . . . . . . . . . . Fabnet Peak Effective % 4 | . . . . . . . . . . . . . . . . 3 3 3 3 4 4 4 4 1 1 . . . . . . Autooverrided 8 | . . . . . . . . . . . . . . . . 1 1 . . . . 5 . 1 . . . . . . . Robots Rewired 13 | . . . 2 . . . 1 . . 1 . 8 . . . . 1 . . . . . . . . . . . . . . Allies Hacked 2 | . . . . . . . . . . . . . . . . . . . . . . 2 . . . . . . . . . Hacks Repelled . | . . . . . . . . . . . . . . . . . . . . . . . . . . . . . . . . Allies | -11 -10 -10 -10 -9 -8 -7 -7 -7 -7 -6 -6 -6 -6 -6 -6 -5 -5 -5 -5 -4 -4 -4 -4 -3 -3 -2 -2 -2 -1 -1 -1 -------- Run | Yrd Mat Min Exi Min Mat Fac Low Low Dat Pro Fac Ext Cet Arc Hub Fac Upp Upp Zhi Pro Fac Arm Lab Res Qua Res Tes Sec Acc Com Ac0 Total Allies 147 | . . 3 2 . . . 1 . . 2 1 12 . . . 3 2 . . . . 16 . 1 . . . . 26 78 . Largest Group 17 | . . 3 4 3 1 . 1 . . 1 1 6 6 . . 2 1 1 . . . 12 . 1 . . . . 7 17 . Highest-Rated Group 829 | . . 40 40 32 16 . 16 . . 96 47 239 196 . . 82 30 29 . . . 574 . 56 . . . . 98 829 . Highest-Rated Ally 234 | . . 16 16 16 16 . 16 . . 96 47 159 39 . . 41 30 29 . . . 64 . 56 . . . . 15 234 . Total Orders 8 | . . . . . . . . . . . . . . . . . . . . . . . . . . . . . . . 8 EXPLORE 7 | . . . . . . . . . . . . . . . . . . . . . . . . . . . . . . . 7 RETURN 1 | . . . . . . . . . . . . . . . . . . . . . . . . . . . . . . . 1 Ally Attacks 464 | . . 28 . 18 6 . 1 . . 5 1 24 23 . . 30 2 5 . . . 108 . . . . . . 87 126 . Total Damage 13002 | . . 242 . 145 61 . . . . 156 . 1006 351 . . 1026 76 19 . . . 3041 . . . . . . 1581 5298 . Kills 76 | . . 3 . 4 1 . . . . 1 . 5 3 . . 8 . 1 . . . 14 . . . . . . 9 27 . Allies Corrupted 7 | . . . . . . . . . . . . . . . . . . . . . . 2 . . . . . . . 5 . Allies Melted 1 | . . . . . . . . . . 1 . . . . . . . . . . . . . . . . . . . . . Intel | -11 -10 -10 -10 -9 -8 -7 -7 -7 -7 -6 -6 -6 -6 -6 -6 -5 -5 -5 -5 -4 -4 -4 -4 -3 -3 -2 -2 -2 -1 -1 -1 ------- Run | Yrd Mat Min Exi Min Mat Fac Low Low Dat Pro Fac Ext Cet Arc Hub Fac Upp Upp Zhi Pro Fac Arm Lab Res Qua Res Tes Sec Acc Com Ac0 Active Infowar (turns) 19262 | 1 570 899 647 343 1048 1245 418 237 33 161 1515 1044 171 886 146 669 629 381 111 530 233 1100 596 1392 982 478 629 590 707 871 . Optics 5889 | . . . . . . . . . . . . . . . . 178 . . . . 125 1100 596 1392 982 478 629 409 . . . Sensors 13078 | . 183 . . . . 693 418 237 33 161 1515 1044 171 886 146 485 629 381 111 530 233 989 596 1392 982 472 595 196 . . . Terrain 257 | . . . . . . 256 . . . . . . . . . . . . . . . . . . . . . . 1 . . Structural 99 | . . . . . . 99 . . . . . . . . . . . . . . . . . . . . . . . . . Seismic 3622 | 1 387 899 647 343 1048 296 . . . . . . . . . . . . . . . . . 1 . . . . . . . T.N.C. 1 | . . . . . . . . . . . . . . . . . . . . . . . . 1 . . . . . . . Cloaking 3929 | . . . . . . . . . . . . . . . . 7 . . . . 232 210 . 271 213 430 553 435 707 871 . Jamming 30 | . . . . . . 22 . . . . . . . . . . . . . . . . . 5 . 2 . . 1 . . ECM 68 | . . . . . . . . . . . . . . . . . . . . . . . . 67 . 1 . . . . . Robot Analysis Total 11 | . 3 . . . 1 3 . . . . . . . . . . . . 4 . . . . . . . . . . . . Derelict Logs Recovered 5 | . . 1 . . . . . 1 . 1 . . . . . . . 1 . 1 . . . . . . . . . . . Drone Launches 20 | . . . . . . . . . . . . . . . . . . . . . . . . . . . . . . . 20 Drone Recoveries 12 | . . . . . . . . . . . . . . . . . . . . . . . . . . . . . . . 12 Exploration | -11 -10 -10 -10 -9 -8 -7 -7 -7 -7 -6 -6 -6 -6 -6 -6 -5 -5 -5 -5 -4 -4 -4 -4 -3 -3 -2 -2 -2 -1 -1 -1 ------------- Run | Yrd Mat Min Exi Min Mat Fac Low Low Dat Pro Fac Ext Cet Arc Hub Fac Upp Upp Zhi Pro Fac Arm Lab Res Qua Res Tes Sec Acc Com Ac0 Turns Passed 23052 | 57 938 932 647 343 1469 1664 418 237 33 407 1538 1044 327 960 156 952 629 381 111 530 233 1100 596 1392 982 478 629 591 707 2282 289 Spaces Moved 28322 | 43 618 638 478 236 1002 1965 641 560 79 632 2227 809 399 184 218 1178 929 743 212 821 326 1232 437 2413 1318 841 669 853 1195 3918 508 Core 91 | 1 . . . . . 90 . . . . . . . . . . . . . . . . . . . . . . . . . Treads . | . . . . . . . . . . . . . . . . . . . . . . . . . . . . . . . . Legs 6042 | . . . . . . . . . . . . . . . . . . . . . . . . . . . . 421 1195 3918 508 Wheels 3277 | 42 618 638 478 236 1002 263 . . . . . . . . . . . . . . . . . . . . . . . . . Hover 18828 | . . . . . . 1528 641 560 79 632 2227 809 399 184 218 1178 929 743 212 821 326 1232 437 2413 1318 841 669 432 . . . Flight 84 | . . . . . . 84 . . . . . . . . . . . . . . . . . . . . . . . . . Fastest Speed 27 | 50 80 115 115 115 105 37 42 42 42 42 27 40 48 48 45 33 40 40 40 42 27 42 42 36 36 33 33 30 30 30 30 Average Speed 46 | 79 108 115 115 115 107 52 42 42 42 42 39 44 48 48 47 39 40 40 41 42 41 42 42 36 39 43 43 39 30 30 30 Slowest Speed 150 | 80 115 115 115 115 115 150 42 42 42 42 102 56 52 48 101 98 40 40 42 42 42 42 42 42 44 44 105 60 30 30 30 Overloaded Moves 109 | . . . . . . . . . . . 3 . . . . . . . . . 18 . . . . 8 80 . . . . Propulsion Burnouts . | . . . . . . . . . . . . . . . . . . . . . . . . . . . . . . . . Robots Hopped . | . . . . . . . . . . . . . . . . . . . . . . . . . . . . . . . . Potential Cave-ins 32 | . . . . . . . . . . . . . . . . . . . . . 5 . . . . 3 2 . 10 2 10 Cave-ins Triggered 1 | . . . . . . . . . . . . . . . . . . . . . . . . . . . . . . . 1 Teleports 4 | . . . . . . . . . . . . . . . . . . . . . . 1 . . . . 1 1 . 1 . Exploration Rate (%) 63 | 4 95 98 91 38 78 53 63 58 70 60 55 87 70 86 42 32 79 79 60 86 12 54 95 65 95 22 76 66 40 87 49 Regions Visited 31 Branch Regions 22 Pre-discovered Areas 13 | . 1 . 1 . 6 . . . 1 1 . . . . . . . . 3 . . . . . . . . . . . . Known Exits Taken 22 | . 1 . . . 1 1 1 . . 1 1 1 1 1 1 1 1 1 1 1 1 1 1 1 1 1 1 . . . . Unknown Exits Taken 9 | 1 . 1 1 1 . . . 1 1 . . . . . . . . . . . . . . . . . . 1 1 1 . Scrap Searched 19 | . . 1 . . . . 3 7 . 2 . . . . . . 4 1 . 1 . . . . . . . . . . . Spaces Dug 300 | . . . . . . 10 . . . . 15 . . . . 40 . 11 . 34 17 2 . 7 8 13 31 . 76 32 4 Terrain Destroyed 1239 | . 7 . . . 128 33 2 . . 1 84 22 3 17 19 175 31 56 . 65 17 15 . 10 19 34 37 115 107 90 152 Melee 38 | . . . . . . 10 . . . . . . . . . . . . . . . 1 . . . 3 7 . 10 7 . Projectile 535 | . . . . . . . 2 . . 1 22 4 3 17 8 55 9 3 . . 17 1 . 6 10 14 30 20 78 83 152 AOE 645 | . 7 . . . 128 23 . . . . 62 15 . . 11 119 22 53 . 65 . 9 . . . 17 . 95 19 . . Terrain Rammed . | . . . . . . . . . . . . . . . . . . . . . . . . . . . . . . . . Walls Destroyed . | . . . . . . . . . . . . . . . . . . . . . . . . . . . . . . . . Machines Disabled . | . . . . . . . . . . . . . . . . . . . . . . . . . . . . . . . . Actions | -11 -10 -10 -10 -9 -8 -7 -7 -7 -7 -6 -6 -6 -6 -6 -6 -5 -5 -5 -5 -4 -4 -4 -4 -3 -3 -2 -2 -2 -1 -1 -1 --------- Run | Yrd Mat Min Exi Min Mat Fac Low Low Dat Pro Fac Ext Cet Arc Hub Fac Upp Upp Zhi Pro Fac Arm Lab Res Qua Res Tes Sec Acc Com Ac0 Total 35932 | 54 766 814 567 291 1244 2406 765 561 78 756 2755 1357 491 989 247 1531 1154 805 236 999 401 1640 843 2816 1634 929 953 1032 1457 4769 592 Wait 4805 | . 42 152 46 44 80 157 95 . . 81 392 349 47 758 10 202 177 44 . 173 50 220 355 135 151 44 180 45 167 600 9 Move 28288 | 42 617 637 477 235 1001 1964 640 559 78 631 2226 808 398 183 217 1177 928 742 211 820 325 1231 436 2412 1317 840 668 852 1193 3916 507 Hop . | . . . . . . . . . . . . . . . . . . . . . . . . . . . . . . . . Pick Up 212 | 1 17 4 7 1 19 26 1 . . 4 13 5 5 3 . 10 7 . 4 . 1 10 13 9 8 2 4 10 . 20 8 Fast Attach 348 | 7 6 2 2 1 13 47 1 1 . 5 17 8 9 4 2 20 1 2 8 . 1 18 4 81 22 11 17 16 8 14 . Attach 111 | . 3 . 1 1 12 12 1 . . 1 2 2 2 2 2 4 . . 1 . 1 4 6 4 11 2 1 11 5 14 6 Detach 54 | . 2 . 1 . 1 2 . . . . 1 . 1 1 1 4 . . . . . 2 1 7 8 2 . 1 4 14 1 Swap 184 | . 8 4 . . 12 8 3 . . 4 8 6 1 3 5 14 12 4 2 2 4 21 8 9 11 3 6 8 1 15 2 Drop 438 | . 13 3 1 1 26 45 1 1 . 9 22 7 10 6 1 20 7 2 10 . . 29 16 84 33 11 19 27 5 22 7 Fire 1012 | 4 58 12 8 8 80 63 17 . . 12 73 64 18 29 9 79 16 11 . 4 19 77 . 63 73 9 18 47 53 40 48 Melee 250 | . . . . . . 69 2 . . 2 1 . . . . . . . . . . 5 4 . . 5 16 15 20 111 . Ram . | . . . . . . . . . . . . . . . . . . . . . . . . . . . . . . . . Kick 2 | . . . . . . . . . . . . . . . . . . . . . . . . . . . . . . 2 . Crush . | . . . . . . . . . . . . . . . . . . . . . . . . . . . . . . . . Escape Stasis 119 | . . . . . . 13 . . . . . 44 . . . . . . . . . 23 . 12 . . 24 . 1 1 1 Rewire 99 | . . . 24 . . . 2 . . 5 . 64 . . . 1 3 . . . . . . . . . . . . . . Trap 7 | . . . . . . . 2 . . 2 . . . . . . 3 . . . . . . . . . . . . . . Miscellaneous 3 | . . . . . . . . . . . . . . . . . . . . . . . . . . . . . . . 3 Route ------- -11/Scrapyard -10/Materials (discovered 6 exits: *Mat x3 / *Min x2 / Sub) -10/Mines (discovered 3 exits: *Mat x2 / *Exi) -10/Exiles -9/Mines -8/Materials (discovered 3 exits: *Fac x3) -7/Factory (discovered 5 exits: *Fac / *Sto x2 / *Low x2) -7/Lower Caves (discovered 2 exits: *Low / [*Zio]) -7/Lower Caves (discovered 2 exits: Fac / *Dat) -7/Data Miner -6/Proximity Caves -6/Factory (discovered 7 exits: *Fac x3 / *Low x2 / *Ext x2) -6/Extension (discovered 2 exits: *Fac / *Cet) -6/Cetus (discovered 2 exits: *Fac / *Arc) -6/Archives (discovered 3 exits: *Fac / *Hub x2) -6/Hub_04(d) (discovered 4 exits: *Fac x4) -5/Factory (discovered 2 exits: *Upp x2) -5/Upper Caves -5/Upper Caves -5/Zhirov -4/Proximity Caves -4/Factory -4/Armory (discovered 3 exits: *Res x2 / *Lab) -4/Lab -3/Research (discovered 3 exits: *Res x2 / *Qua) -3/Quarantine -2/Research (discovered 3 exits: *Acc / *Tes x2) -2/Testing (discovered 3 exits: *Acc / *Sec / [*Frg]) -2/Section 7 -1/Access (discovered 2 exits: [*Sur] / *Com) -1/Command (discovered 3 exits: [*Sur x2] / [*Ac0]) -1/Access_0 History --------- Turn | Location | Event 17 | -11/Scrapyard | Discovered new exit (range 16) 58 | -11/Scrapyard | Entered Materials 172 | -10/Materials | Discovered new exit (range 12) 298 | -10/Materials | Discovered new exit (range 16) 312 | -10/Materials | Build established: Mutant 547 | -10/Materials | Core integrity fell below 50% 565 | -10/Materials | Discovered new exit (range 22) 641 | -10/Materials | Identified exit to Subcaves 641 | -10/Materials | Identified exit to Materials 641 | -10/Materials | Identified exit to Mines 706 | -10/Materials | Learned Storage security intel 763 | -10/Materials | Learned location of 2 exits from Materials 808 | -10/Materials | Learned location of Mines (-9) 843 | -10/Materials | Learned location of 1 exit from Storage 866 | -10/Materials | Learned Storage emergency access door positions 901 | -10/Materials | Learned location of 1 exit from Recycling 948 | -10/Materials | Learned Storage emergency access door positions 996 | -10/Materials | Entered Mines 1037 | -10/Mines | Assisted by bots powering up and referring to "LRC-V3" 1041 | -10/Mines | Discovered exit to Materials (range 7) 1104 | -10/Mines | Learned location of 1 exit from Materials 1460 | -10/Mines | Deemed a non-threat by the Exiles lab entrance 1460 | -10/Mines | Discovered new exit (range 5) 1576 | -10/Mines | Received a Rocket Launcher from a helpful Derelict 1632 | -10/Mines | Discovered exit to Materials (range 12) 1724 | -10/Mines | Core integrity fell below 20% 1928 | -10/Mines | Entered Exiles 1928 | -10/Exiles | Found Exiles lab destroyed 1928 | -10/Exiles | Accompanied by 2 allies 2117 | -10/Exiles | Opened EX-Vault 2125 | -10/Exiles | Found Cloak of Protection 2200 | -10/Exiles | Learned location of Zion (-6) 2552 | -10/Exiles | Discovered new exit (range 14) 2575 | -10/Exiles | Entered Mines 2575 | -9/Mines | Accompanied by 4 allies 2619 | -9/Mines | Lost 3 allies 2765 | -9/Mines | Assembled infested the area 2770 | -9/Mines | Assisted by a Guerilla fighting off Assembled 2908 | -9/Mines | Discovered new exit (range 6) 2909 | -9/Mines | Build established: Scavenger-Mutant 2918 | -9/Mines | Entered Materials 2918 | -8/Materials | Accompanied by 1 ally 2918 | -8/Materials | Evolved 4 slots: Propulsion x1, Utility x2, Weapon x1 2919 | -8/Materials | Identified exit to Factory 3012 | -8/Materials | Central database locked down 3340 | -8/Materials | Lost 3 parts (1n1u1w) 3766 | -8/Materials | Learned location of Extension (-6) 3824 | -8/Materials | Build established: Tank 4007 | -8/Materials | Learned location of 1 exit from Lower Caves 4041 | -8/Materials | Learned location of 1 exit from Recycling 4087 | -8/Materials | Learned Storage emergency access door positions 4118 | -8/Materials | First assault squad dispatched 4189 | -8/Materials | Lost 3 parts (1p1n1u) 4212 | -8/Materials | Learned Factory stockpile data 4216 | -8/Materials | Destroyed 10 combat bots 4387 | -8/Materials | Entered Factory 4387 | -7/Factory | Evolved 2 slots: Utility x2 4388 | -7/Factory | Identified exit to Storage 4670 | -7/Factory | Garrison activated, responded to threat 4734 | -7/Factory | Lost 6 parts (1p2n1u2w) 4810 | -7/Factory | Build established: Hacker-Mutant 4877 | -7/Factory | Lost 5 parts (1n2u2w) 4926 | -7/Factory | Core integrity fell below 50% 5096 | -7/Factory | Identified exit to Lower Caves 5151 | -7/Factory | Fabricated Hacking Suite (x1) 5306 | -7/Factory | Build established: Scavenger-Mutant 5383 | -7/Factory | Discovered new exit (range 14) 5601 | -7/Factory | Repaired Imp. Light Armor Plating? 5747 | -7/Factory | Lost 3 parts (2n1u) 5860 | -7/Factory | Fabricated System Restoration Module (x2) 5989 | -7/Factory | Watched by a mysterious "MATRIX" hacker. 6051 | -7/Factory | Entered Lower Caves 6052 | -7/Lower Caves | Identified exit to Lower Caves 6179 | -7/Lower Caves | Attracted the attention of an 0b10 checkpoint 6223 | -7/Lower Caves | A Derelict revealed a hidden shortcut to a safe place 6469 | -7/Lower Caves | Entered another Lower Caves area 6475 | -7/Lower Caves | Identified exit to Factory 6515 | -7/Lower Caves | Encountered a Warlord checkpoint 6530 | -7/Lower Caves | Discovered new exit (range 9) 6706 | -7/Lower Caves | Entered Data Miner 6706 | -7/Data Miner | Discovered new exit (range 6) 6714 | -7/Data Miner | Met Data Miner 6722 | -7/Data Miner | Learned location of Section 7 (-2) 6722 | -7/Data Miner | Acquired the access code to Warlord's prototype stash 6730 | -7/Data Miner | Received God Mode back door access code from Data Miner 6739 | -7/Data Miner | Entered Proximity Caves 6792 | -6/Proximity Caves | Escorted by Enhanced Grunt 6939 | -6/Proximity Caves | Build established: Hacker-Mutant 7130 | -6/Proximity Caves | Discovered exit to Factory (range 13) 7146 | -6/Proximity Caves | Entered Factory 7146 | -6/Factory | Accompanied by 1 ally 7146 | -6/Factory | Evolved 2 slots: Propulsion x2 7345 | -6/Factory | Fabricated Antigrav Array (x1) 7439 | -6/Factory | Discovered new exit (range 16) 7457 | -6/Factory | Identified exit to Lower Caves 7469 | -6/Factory | Identified exit to Extension 7494 | -6/Factory | Build established: Hacker-Skirmisher 7832 | -6/Factory | Discovered new exit (range 16) 7840 | -6/Factory | Identified exit to Factory 7936 | -6/Factory | Discovered exit to Factory (range 13) 7970 | -6/Factory | Build established: Skirmisher 8142 | -6/Factory | Spotted B-75 Beast 8178 | -6/Factory | Discovered exit to Factory (range 8) 8495 | -6/Factory | Cargo convoy interrupted 8580 | -6/Factory | Repaired Broken Antigrav Array 8684 | -6/Factory | Entered Extension 8857 | -6/Extension | Rescued A7 9066 | -6/Extension | Build established: Commander-Skirmisher 9236 | -6/Extension | Spotted B-75 Beast 9262 | -6/Extension | Spotted B-75 Beast 9266 | -6/Extension | Allies destroyed B-75 Beast 9303 | -6/Extension | Lost 3 allies 9315 | -6/Extension | Extracted ID and sensor layout for unrecognized location from A7's data core 9358 | -6/Extension | Lost 3 parts (1p1n1w) 9382 | -6/Extension | Rescued a captive Derelict 9570 | -6/Extension | Rescued a captive Derelict 9659 | -6/Extension | Rescued a captive Derelict 9701 | -6/Extension | Discovered exit to Factory (range 10) 9702 | -6/Extension | Discovered new exit (range 6) 9722 | -6/Extension | Identified exit to Cetus 9728 | -6/Extension | Entered Cetus 9728 | -6/Cetus | Accompanied by 6 allies 9744 | -6/Cetus | Spotted Cetus Guard 9744 | -6/Cetus | Spotted Cetus Guard 9754 | -6/Cetus | Spotted Cetus Guard 9756 | -6/Cetus | Spotted Cetus Guard 9757 | -6/Cetus | Destroyed Cetus Guard 9761 | -6/Cetus | Allies destroyed Cetus Guard 9761 | -6/Cetus | Allies destroyed Cetus Guard 9763 | -6/Cetus | Allies destroyed Cetus Guard 9790 | -6/Cetus | Lost 4 allies 9846 | -6/Cetus | Discovered new exit (range 16) 9887 | -6/Cetus | Spotted Cetus Guard 9887 | -6/Cetus | Spotted Cetus Guard 9892 | -6/Cetus | Spotted Cetus Guard 9903 | -6/Cetus | Spotted Cetus Guard 9971 | -6/Cetus | Destroyed Cetus Guard 9974 | -6/Cetus | Destroyed Cetus Guard 9985 | -6/Cetus | Destroyed Cetus Guard 10021 | -6/Cetus | Destroyed Cetus Guard 10028 | -6/Cetus | Discovered exit to Factory (range 15) 10031 | -6/Cetus | Met Revision 17 10055 | -6/Cetus | Identified exit to Archives 10055 | -6/Cetus | Entered Archives 10124 | -6/Archives | Discovered exit to Factory (range 15) 10136 | -6/Archives | Discovered new exit (range 16) 10208 | -6/Archives | Discovered new exit (range 15) 10302 | -6/Archives | Identified exit to Hub_04(d) 10418 | -6/Archives | Build established: Scavenger-Skirmisher 11015 | -6/Archives | Entered Hub_04(d) 11036 | -6/Hub_04(d) | Network Hub disabled 11053 | -6/Hub_04(d) | Network Hub disabled 11072 | -6/Hub_04(d) | Spotted Lightning 11073 | -6/Hub_04(d) | Spotted Lightning 11074 | -6/Hub_04(d) | Core integrity fell below 50% 11155 | -6/Hub_04(d) | Spotted Lightning 11155 | -6/Hub_04(d) | Spotted Lightning 11155 | -6/Hub_04(d) | Spotted Lightning 11159 | -6/Hub_04(d) | Network Hub disabled 11171 | -6/Hub_04(d) | Entered Factory 11171 | -5/Factory | Evolved 2 slots: Propulsion x1, Utility x1 11177 | -5/Factory | Targeted by mysterious "MATRIX" hacker. 11194 | -5/Factory | Lost 5 parts (3n1u1w) 11321 | -5/Factory | Incoming investigation squad redirected 11525 | -5/Factory | Fabricated Antigrav Array (x1) 11556 | -5/Factory | Repaired Centrium Medium Armor Plating 11616 | -5/Factory | Identified exit to Upper Caves 11641 | -5/Factory | Spotted B-75 Beast 11691 | -5/Factory | Garrison activated, responded to threat 12015 | -5/Factory | Central database locked down 12123 | -5/Factory | Entered Upper Caves 12155 | -5/Upper Caves | Destroyed 12 combat bots 12503 | -5/Upper Caves | Attracted the attention of an 0b10 outpost 12654 | -5/Upper Caves | Discovered new exit (range 4) 12655 | -5/Upper Caves | Identified exit to Upper Caves 12752 | -5/Upper Caves | Entered another Upper Caves area 12752 | -5/Upper Caves | Accompanied by 1 ally 12775 | -5/Upper Caves | Learned 4 Factory zone layouts 12802 | -5/Upper Caves | Attacked by a delusional Derelict stockpiling parts 13097 | -5/Upper Caves | Discovered new exit (range 7) 13109 | -5/Upper Caves | Identified exit to Zhirov 13133 | -5/Upper Caves | Entered Zhirov 13133 | -5/Zhirov | Discovered new exit (range 3) 13141 | -5/Zhirov | Met Zhirov 13150 | -5/Zhirov | Learned location of Quarantine (-3) 13150 | -5/Zhirov | Learned location of Command (-1) 13152 | -5/Zhirov | Zhirov requested help retrieving the SGEMP Prototype 13158 | -5/Zhirov | Found Alien Artifact 13158 | -5/Zhirov | Identified Integrated Dissipator 13158 | -5/Zhirov | Installed Integrated Dissipator, increased core heat dissipation (+20) 13167 | -5/Zhirov | Found Alien Artifact 13213 | -5/Zhirov | Identified exit to Proximity Caves 13244 | -5/Zhirov | Entered Proximity Caves 13247 | -4/Proximity Caves | Spotter reported a threat 13292 | -4/Proximity Caves | Spotted B-86 Titan 13743 | -4/Proximity Caves | Learned Research stockpile data 13764 | -4/Proximity Caves | Discovered new exit (range 9) 13768 | -4/Proximity Caves | Identified exit to Factory 13774 | -4/Proximity Caves | Entered Factory 13774 | -4/Factory | Evolved 2 slots: Power x1, Utility x1 13999 | -4/Factory | Discovered new exit (range 21) 14007 | -4/Factory | Identified exit to Armory 14007 | -4/Factory | Entered Armory 14008 | -4/Armory | Met VL-GR5, who suggested a friendly competition 14111 | -4/Armory | Identified exit to Research 14204 | -4/Armory | Build established: Scavenger-Scout 14238 | -4/Armory | Lost the competition with VL-GR5 14355 | -4/Armory | Lost 3 allies 14366 | -4/Armory | VL-GR5 left a parting gift on exiting Armory 14381 | -4/Armory | Found Prototype Energy Cannon 14427 | -4/Armory | Assisted by bots powering up and referring to "LRC-V3" 14436 | -4/Armory | Identified Multinova Projection Cannon 14551 | -4/Armory | Spotted B-86 Titan 14595 | -4/Armory | Lost 3 allies 14636 | -4/Armory | Discovered new exit (range 4) 14640 | -4/Armory | Identified exit to Lab 14754 | -4/Armory | Spotted Armor Guard 14754 | -4/Armory | Spotted Armor Guard 14757 | -4/Armory | First assault squad dispatched 14769 | -4/Armory | Destroyed Armor Guard 14812 | -4/Armory | Found Prototype Device 14812 | -4/Armory | Identified Exp. Weapon Cycler 14818 | -4/Armory | Spotted Armor Guard 14818 | -4/Armory | Spotted Armor Guard 14819 | -4/Armory | Identified Transdimensional Reconstructor 14819 | -4/Armory | Warped through subspace to slip node 15022 | -4/Armory | Incoming assault squad redirected 15107 | -4/Armory | Entered Lab 15109 | -4/Lab | Discovered exit to Research (range 10) 15117 | -4/Lab | Hidden lab's door opened automatically 15117 | -4/Lab | Sensor layout match revealed 15118 | -4/Lab | Gained access to the hidden lab's interior 15175 | -4/Lab | Found Alien Artifact 15181 | -4/Lab | Found Transdimensional Reconstructor 15327 | -4/Lab | Found Prototype Special Weapon 15333 | -4/Lab | Unable to decrypt terminal 15571 | -4/Lab | Found Prototype Energy Gun 15573 | -4/Lab | Found Prototype Energy Gun 15575 | -4/Lab | Found Prototype Protection 15577 | -4/Lab | Found Prototype Hackware 15597 | -4/Lab | Identified Tachyon Dispersion Ray 15599 | -4/Lab | Identified Hyp. EM Gauss Rifle 15602 | -4/Lab | Identified Gui. Remote Datajack 15604 | -4/Lab | Identified Med. Regenerative Plating 15647 | -4/Lab | Found Alien Artifact 15650 | -4/Lab | Identified Integrated Mediator 15650 | -4/Lab | Installed Integrated Mediator, increased core attachment efficiency 15657 | -4/Lab | Found Alien Artifact 15672 | -4/Lab | Identified Core Reset Matrix 15672 | -4/Lab | Identified Core Regenerator 15672 | -4/Lab | Used Core Reset Matrix 15674 | -4/Lab | Identified Deep Network Scanner 15676 | -4/Lab | Sensed 1 artifact in vicinity 15703 | -4/Lab | Entered Research 15703 | -3/Research | Evolved 2 slots: Propulsion x1, Utility x1 15903 | -3/Research | Revision forces began assault on 0b10 15913 | -3/Research | Discovered new exit (range 9) 15920 | -3/Research | Identified exit to Research 15971 | -3/Research | Local machine network offline 15972 | -3/Research | Build established: Hacker-Scout 16040 | -3/Research | Found Prototype Processor 16040 | -3/Research | Identified Exp. Melee Analysis Suite 16068 | -3/Research | Found Prototype Launcher 16068 | -3/Research | Identified Tesla Bomb Launcher 16071 | -3/Research | Found Unknown Launcher 16071 | -3/Research | Identified Fusion Bomb Launcher 16120 | -3/Research | Found Unknown Launcher 16120 | -3/Research | Identified Gamma Bomb Array 16127 | -3/Research | Discovered new exit (range 11) 16148 | -3/Research | Met up with Revision 17++ 16153 | -3/Research | Identified exit to Quarantine 16306 | -3/Research | Spotted B-86 Titan 16382 | -3/Research | Lost 3 allies 16403 | -3/Research | Research terminal network offline 16483 | -3/Research | Discovered exit to Research (range 10) 16799 | -3/Research | Spotted Striker 16799 | -3/Research | Spotted Executioner 16931 | -3/Research | Spotted Executioner 16931 | -3/Research | Spotted Striker 16962 | -3/Research | Destroyed Striker 17095 | -3/Research | Entered Quarantine 17096 | -3/Quarantine | Detected hypermatrix surge 17096 | -3/Quarantine | Sensed 14 artifacts in vicinity 17430 | -3/Quarantine | Spotted Alpha 7 17575 | -3/Quarantine | Central database locked down 17600 | -3/Quarantine | Discovered exit to Research (range 21) 17797 | -3/Quarantine | Found Transdimensional Reconstructor 17807 | -3/Quarantine | Found Dimensional Node Initializer 17840 | -3/Quarantine | Found Subatomic Replicator 17900 | -3/Quarantine | System corruption reached 10% 17955 | -3/Quarantine | Found Sigix Broadsword 18077 | -3/Quarantine | Entered Research 18077 | -2/Research | Evolved 2 slots: Utility x1, Weapon x1 18170 | -2/Research | Identified exit to Testing 18323 | -2/Research | Found Prototype Device 18323 | -2/Research | Identified Exp. Transmission Jammer 18336 | -2/Research | Discovered new exit (range 23) 18381 | -2/Research | Build established: Alien-Ninja 18424 | -2/Research | Spotted B-90 Cyclops 18555 | -2/Research | Entered Testing 18563 | -2/Testing | Protovariant out of control (PX-VE2KMO1XJZ) 18563 | -2/Testing | Unleashed a protovariant (PX-VE2KMO1XJZ) 18788 | -2/Testing | Protovariant out of control (PL-FA4BDNBAZE) 18788 | -2/Testing | Unleashed a protovariant (PL-FA4BDNBAZE) 18910 | -2/Testing | Found Corrupted Exp. Core Analyzer 18938 | -2/Testing | Spotted Investigator 18942 | -2/Testing | Discovered new exit (range 16) 18944 | -2/Testing | Scanned by Researcher 18944 | -2/Testing | Warped through subspace 19060 | -2/Testing | Found Prototype Energy Gun 19060 | -2/Testing | Identified Tachyon Dispersion Ray 19135 | -2/Testing | Spotted Fortress 19170 | -2/Testing | Discovered new exit (range 6) 19170 | -2/Testing | Discovered new exit (range 7) 19175 | -2/Testing | Identified exit to Section 7 19184 | -2/Testing | Entered Section 7 19185 | -2/Section 7 | Detected hypermatrix surge 19185 | -2/Section 7 | Sensed 21 artifacts in vicinity 19194 | -2/Section 7 | Spotted S7 Guard 19195 | -2/Section 7 | Destroyed S7 Guard 19211 | -2/Section 7 | Found Core Membrane 19211 | -2/Section 7 | Installed Core Membrane, gained immunity to corruption 19217 | -2/Section 7 | Spotted S7 Guard 19242 | -2/Section 7 | Discovered new exit (range 18) 19243 | -2/Section 7 | Spotted B-90 Cyclops 19348 | -2/Section 7 | Destroyed B-90 Cyclops 19387 | -2/Section 7 | Spotted S7 Guard 19403 | -2/Section 7 | Destroyed S7 Guard 19485 | -2/Section 7 | Found Integrated Dissipator 19485 | -2/Section 7 | Installed Integrated Dissipator, increased core heat dissipation (+20) 19523 | -2/Section 7 | Spotted Alpha 7 19524 | -2/Section 7 | Initialized slip node 19525 | -2/Section 7 | Spotted S7 Guard 19527 | -2/Section 7 | Spotted Alpha 7 19535 | -2/Section 7 | Core integrity fell below 50% 19535 | -2/Section 7 | Warped through subspace 19539 | -2/Section 7 | Used Core Regenerator, restored core integrity (+362) 19548 | -2/Section 7 | Spotted Executioner 19549 | -2/Section 7 | Spotted Executioner 19560 | -2/Section 7 | Spotted B-99 Colossus 19565 | -2/Section 7 | Lost 14 parts (2p5n5u2w) 19581 | -2/Section 7 | Spotted Executioner 19593 | -2/Section 7 | Integrated with Sigix Exoskeleton 19603 | -2/Section 7 | Spotted Executioner 19615 | -2/Section 7 | Spotted Striker 19633 | -2/Section 7 | Found Sigix Sheargun 19635 | -2/Section 7 | Found Sigix Sheargun 19661 | -2/Section 7 | Found Transdimensional Reconstructor 19717 | -2/Section 7 | Found LRC Storage 19717 | -2/Section 7 | Installed LRC Storage, increased inventory capacity (+2) 19719 | -2/Section 7 | Found LRC Storage 19719 | -2/Section 7 | Installed LRC Storage, increased inventory capacity (+2) 19763 | -2/Section 7 | Found Integrated Mediator 19763 | -2/Section 7 | Installed Integrated Mediator, increased core attachment efficiency 19775 | -2/Section 7 | Entered Access 19775 | -1/Access | Evolved 2 slots: Utility x1, Weapon x1 19780 | -1/Access | Emitted hypermatrix ping 19785 | -1/Access | Assembled emerged from beneath the floor 19805 | -1/Access | Found Unknown Device 19805 | -1/Access | Identified Quantum Capacitor 19852 | -1/Access | Lost 3 allies 19898 | -1/Access | Build established: Alien-Sigix 20060 | -1/Access | Discovered new exit (range 17) 20115 | -1/Access | Assembled emerged from beneath the floor 20351 | -1/Access | Sigix Exoskeleton integrity reduced to 80% 20390 | -1/Access | Assembled emerged from beneath the floor 20461 | -1/Access | Assembled emerged from beneath the floor 20467 | -1/Access | Discovered new exit (range 18) 20482 | -1/Access | Entered Command 20487 | -1/Command | Emitted hypermatrix ping 20492 | -1/Command | Assembled emerged from beneath the floor 20494 | -1/Command | Lost 5 allies 20534 | -1/Command | Spotted Combat Programmer 20535 | -1/Command | Spotted Combat Programmer 20535 | -1/Command | Spotted M Guard 20543 | -1/Command | Assembled emerged from beneath the floor 20585 | -1/Command | Destroyed Combat Programmer 20605 | -1/Command | Lost 7 allies 20636 | -1/Command | Sigix Exoskeleton integrity reduced to 60% 20656 | -1/Command | Found Prototype Device 20656 | -1/Command | Identified AEGIS Remote Shield 20675 | -1/Command | Destroyed M Guard 20697 | -1/Command | Disengaged cave seal 20704 | -1/Command | Assembled emerged from beneath the floor 20732 | -1/Command | First assault squad dispatched 20765 | -1/Command | Lost 4 allies 20792 | -1/Command | Spotted M Guard 20827 | -1/Command | Destroyed M Guard 20866 | -1/Command | Met MAIN.C 20930 | -1/Command | MAIN.C's shell transforms into a squad of autonomous robots 20930 | -1/Command | Destroyed MAIN.C Shell 20930 | -1/Command | Spotted M Shell/Def 20930 | -1/Command | Spotted M Shell/Atk 20930 | -1/Command | Spotted M Shell/Def 20930 | -1/Command | Spotted M Shell/Atk 20930 | -1/Command | Spotted M Shell/Atk 20930 | -1/Command | Spotted M Shell/Def 20930 | -1/Command | Spotted M Shell/Atk 20930 | -1/Command | Spotted M Shell/Def 20933 | -1/Command | MAIN.C activated Command garrisons 20956 | -1/Command | 0b10 Conduit disabled 20979 | -1/Command | Sigix Exoskeleton integrity reduced to 40% 20982 | -1/Command | Core integrity fell below 50% 21054 | -1/Command | Destroyed MAIN.C 21055 | -1/Command | Discovered new exit (range 56) 21055 | -1/Command | Discovered new exit (range 149) 21055 | -1/Command | Extracted map data and part IDs from MAIN.C's data core 21062 | -1/Command | Found Zero-point Reactor 21068 | -1/Command | All MAIN.C guards destroyed 21953 | -1/Command | Assembled emerged from beneath the floor 22000 | -1/Command | Assembled emerged from beneath the floor 22035 | -1/Command | Found Exp. Core Analyzer 22059 | -1/Command | Found Exp. Targeting Computer 22209 | -1/Command | Assembled emerged from beneath the floor 22443 | -1/Command | Found Corrupted Exp. Weapon Cycler 22562 | -1/Command | Found Hpw. Disruptor Cannon 22591 | -1/Command | Found Gamma Refractor 22728 | -1/Command | Found Exp. Targeting Computer 22756 | -1/Command | Warped through subspace to slip node 22756 | -1/Command | Discovered new exit (range 4) 22764 | -1/Command | Entered Access_0 22765 | -1/Access_0 | Sensed 3 artifacts in vicinity 22765 | -1/Access_0 | Met Architect 22776 | -1/Access_0 | Destroyed A8 22783 | -1/Access_0 | Architect warped through subspace 22794 | -1/Access_0 | Used Subatomic Replicator to replicate Adv. Drone Bay 22847 | -1/Access_0 | Subspace Access Node disabled 22860 | -1/Access_0 | A6 warped into view 22865 | -1/Access_0 | Triggered Gamma Refractor 22877 | -1/Access_0 | Subspace Access Node disabled 22882 | -1/Access_0 | Core integrity fell below 20% 22892 | -1/Access_0 | Architect warped through subspace 22896 | -1/Access_0 | Lost 3 allies 22917 | -1/Access_0 | Subspace Access Node disabled 22918 | -1/Access_0 | Sigix Exoskeleton integrity reduced to 20% 22951 | -1/Access_0 | Architect warped through subspace 22963 | -1/Access_0 | A5 warped into view 23004 | -1/Access_0 | Architect warped through subspace 23009 | -1/Access_0 | Destroyed A5 23029 | -1/Access_0 | Subspace Access Node disabled 23035 | -1/Access_0 | Crushed by falling debris 23053 | -1/Access_0 | Destroyed by Enhanced Sentry with Long-range Gatling Laser Last Messages --------------- 23019_ HV Slug penetrates Wall. 23022_ Acquired 1 matter. 23023_ Enhanced Grunt shuts down. 23023_ HV Slug penetrates Wall. 23023_ Quantum Shear penetrates Wall. 23029_ Quantum Shear penetrates Subspace Access Node. 23029_ Subspace Access Node disabled. 23034_ Quantum Shear penetrates Earth. 23035_ The unstable cave ceiling collapses. 23035_ Crushed by falling debris. 23040_ Dropped Exp. Propulsion Shielding. 23047_ Quantum Shear penetrates Wall. 23047_ Penetrated by Quantum Shear. 23048_ Quantum Shear penetrates Architect. 23049_ Penetrated by Quantum Shear. 23049_ Quantum Shear penetrates Wall. 23052_ Penetrated by Quantum Shear. 23052_ Quantum Shear penetrates Wall. 23052_ Quantum Shear penetrates Architect. Map ----- +----------------------------------------------------+ | ?????????????????????????????????????????????????? | | ???????????????????????????????#?????????????????? | | ??????????????????????????###########????????????? | | ???????????????????????##################????????? | | ?????????????????????#################### ???? | | ???????????????????##################### ####? | | ?????????????????? ################# | | ???????????????? ################ ## # | | ??????????????? ################ ## #### | | ??????????????## ################ ## #### | | ?????????????##### ########## #### | | ?????????????##### ########## ### | | ????????????####### ####### #### # ## | | #??????????######## ####### ;### ## # # | | ##?????######### ##### # # # | | ###?#### ### # ## # | | ######## ### ## ###### | | ######## #### ## Y | | ######## ####### #####; " # # | | ####### ####### ######; ## ###### ## | | ###### # ######## ######; !##### | | ##### # ################ #;########## ###### | | ## ############### ;########### ##### | | ############ ############ ##### | | # ########### ############### ###### | | ###### ########## X################ ###### | | ###### ############## ;;################ ###### | | ###### ############;; 0;;################ ###### | | ###### ###########;;; ;################# ###### | | ####" """###### #;; %"################# ###### | | ### "" #"## "" ############### ###### | | ### "" ## "" ##############" ###### | | ###"#" "#### #;#; "############" # ###### | | " "## ####" #;##;; g############## #### | | "#### ##"" ; ##; ############## "### | | ########"" ;; ######g ############## | | "##### ; # "#############"" | | "h "" ## #### | | % h"" g " "### | | "#"""" "" # """" "" "" " | | "" #" " " ### " | | "" "" " " " " "### ####""" | | " """" "" " """ """"""" """ # # | | " "" " "" """ "" "" " #" # | | " " " """ "" """" "" # | | % " " " "" "" "" " "" " # | | " """" " "" """" "" " " "# | | "" """"" " """""""" """ " " ##### | | " """ " "" " " " # "# ##" | | " """""" "" """ " " "# "# " | +----------------------------------------------------+ Best States ------------- Heat Dissipation 162 Coolant Potential 65 Energy Generation 75 Energy Capacity 1200 Matter Stores 300 Matter Capacity 300 Sight Range 23 Robot Scan Range 18 Terrain Scan Range 18 Terrain Scan Density 135 ECM Strength 1 Jamming Range 16 Cloak Strength 5 Power Amplification 30 Additional Mass Support 12 Base Temperature (-) 200 Armor Coverage 600 Resistance: KI 50 Resistance: TH 50 Resistance: EX 50 Resistance: EM 50 Resistance: I 50 Resistance: S 50 Resistance: P 50 Core Shielding 20 Propulsion Shielding 90 Weapon Cycling 30 Melee Speed Boost 20 Phase Shifting 15 Evasion (%) 94 Targeting Accuracy 12 Melee Accuracy 8 Launcher Accuracy 30 Target Analysis 6 Core Analysis 8 Armor Integrity Analysis 30 Force Boost 30 Offensive Hacking 39 Defensive Hacking 11 Authchip Count 1 Trap Extractor Capacity 6 Item Schematics ----------------- Cld. Q-thruster | -2/Section 7 | Archive Robot Schematics ------------------ None Fabricated ------------ Hacking Suite | x1 | -7/Factory System Restoration Module | x2 | -7/Factory Antigrav Array | x1 | -6/Factory | Preloaded Antigrav Array | x1 | -5/Factory Repaired ---------- Imp. Light Armor Plating | 10% | -7/Factory Antigrav Array | 83% | -6/Factory | Broken Centrium Medium Armor Plating | 18% | -5/Factory Studied --------- Hyp. Railgun | -3/Research | Hacked Antigrav Array | -3/Quarantine | Hacked Imp. Antigrav System | -3/Quarantine | Hacked Cmb. Antigrav System | -3/Quarantine | Hacked Fusion Bomb Launcher | -3/Quarantine | Hacked Mic. Antimatter Reactor | -2/Research | Hacked Lgt. Quantum Reactor | -2/Testing | Hacked Alien Tech Used ----------------- Integrated Dissipator Transdimensional Reconstructor Integrated Mediator Core Reset Matrix Sigix Broadsword Core Membrane Dimensional Node Initializer Core Regenerator Sigix Exoskeleton Sigix Sheargun LRC Storage Subatomic Replicator Achievements -------------- None Challenges ------------ None Game ------ Seed PointSpikedBarrier Manual? 0 Play Time 06:40:25 Cumulative 544.6 hours Start 2026.02.10 @ 15:42:32 End 2026.02.11 @ 04:10:23 Sessions 3 Manual Loads 0 Difficulty Rogue Special Mode None Game No. 187 Rogue 187 Adventurer 0 Explorer 0 Win Type - Total 17 Types 8/0/5/1/0/0/0/1/0/2 Lore% 91 Gallery% 83 Achievement% 75 Wizard Run 0 Options --------- Layout 1 ASCII 0 Keyboard 0 Movement Mouse Keybinds 0 Fullscreen 2 Font 32/SmallcapsGlow Map View 50x35 Zoom Use 0% Tactical HUD 1 Map Filters NONE Filters NONE Steam 1 RUN: 4f66927d-c926-4059-af01-92ee74e267b5